{"text_format":"2","workbook":"xlsx","n_sheets":2,"sheets":["Summary","Majuro BoQ"],"not_rendered":{"charts":0,"images":0,"macros":0,"external_links":0,"defined_names":0,"comments":0,"pivot_tables":0},"unopened":[],"bounds":{"document_bytes":16777216,"sheet_cells":100000,"run_cost":"one","rows_first":2000,"rows_last":500,"rows_between":2000,"halvings":0,"cell_chars":16384,"cell_head_chars":4096},"cells_cut":0,"cells_raw":0,"read":"whole","date_system":"1900"}

{"sheet":"Summary","index":0,"n_rows":39,"n_cols":3,"rows_kept":39,"cut":false,"hidden":false,"merged":[[0,0,4,2],[5,0,7,2]]}
["National Disaster Management Office\nEmergency Operations Centre\nMajuro Atoll, Marshall Islands\nBill of Quantities Rev.1"]
[]
[]
[]
[]
["N.B. The PDF issue of the Bill of Quantities is the controlling document, this version in excel has been provided for convenience - therefore M5 Advisors accepts no responsibility to its accuracy or representation of the final Bill of Quantities."]
[]
[]
["Code","Description","Total"]
["1","PRELIMINARIES",0]
["2","DEMOLITION",0]
["3","GROUNDWORKS",0]
["4","IN-SITU CONCRETE",0]
["5","FORMWORK",0]
["6","REINFORCEMENT",0]
["7","TANKING & WATERPROOFING",0]
["8","MASONRY",0]
["9","STEEL, TRUSSES & STAIRS",0]
["10","ROOFING & CLADDING",0]
["11","METALWORK",0]
["12","PARTITIONS & LININGS",0]
["13","CEILINGS",0]
["14","ALUMINIUM WINDOWS & DOORS",0]
["15","DOORS & HARDWARE",0]
["16","RESILENT FINISHES",0]
["17","TILING",0]
["18","PAINTING",0]
["19","SUNDRY HARDWARE",0]
["20","JOINERY & CARPENTRY",0]
["21","EXTERNAL WORKS",0]
["22","HYDRAULIC & DRAINAGE SERVICES",0]
["23","FIRE SERVICES",0]
["24","ELECTRICAL SERVICES",0]
["25","MECHANICAL SERVICES",0]
["26","LIFT SERVICES",0]
["27","APPENDICES",0]
["28","OPTIONAL ITEMS",0]
[]
[null,"TOTAL",{"$f":"SUM(C10:C37)","v":0}]

{"sheet":"Majuro BoQ","index":1,"n_rows":1539,"n_cols":6,"rows_kept":1539,"cut":false,"hidden":false,"merged":[[0,0,0,2],[90,0,90,2],[136,0,136,2],[206,0,206,2],[292,0,292,2],[365,0,365,2],[423,0,423,2],[454,0,454,2],[520,0,520,2],[573,0,573,2],[636,0,636,2],[718,0,718,2],[786,0,786,2],[844,0,844,2],[893,0,893,2],[960,0,960,2],[1012,0,1012,2],[1045,0,1045,2],[1103,0,1103,2],[1156,0,1156,2],[1342,0,1342,2],[1372,0,1372,2],[1501,0,1501,2],[1203,0,1203,2],[1225,0,1225,2],[1256,0,1256,2],[1285,0,1285,2],[1314,0,1314,2]]}
["PRELIMINARIES"]
["Code","Description","Quantity","Unit","Rate","Total"]
[1.01,"SPECIFICATION",null,null,null,{"$f":"C3*E3","v":0}]
[{"$f":"A3+0.01","v":1.02},"The Contractor is referred to the relevant specification sections for full particulars and will be deemed to have allowed here or in the measurement rates for all costs in connection therewith.",null,null,null,0]
[{"$f":"A4+0.01","v":1.03},"DRAWINGS",null,null,null,0]
[1.04,"The Contractor is referred to the Drawing Schedule attached to the back of this Bill of Quantities for the drawings and their revision or issue references used in the preparation of this document.",null,null,null,0]
[1.05,"GENERALLY",null,null,null,0]
[1.06,"The true cost of Preliminaries is deemed to be entered in this Section and not elsewhere.",null,null,null,0]
[1.07,"The total of the prices inserted against items contained in this section are deemed to represent the total cost of Preliminaries.",null,null,null,0]
[1.08,"In general, items within the Preliminaries are regarded as a fixed amount not subject to adjustment other than in accordance the various contractual conditions and requirements referred to in the contract documents",null,null,null,0]
[1.0900000000000001,"Under the terms of the contract, no adjustment to the contract sum will be made for any errors in this Bill of Quantities.",null,null,null,0]
[1.1000000000000001,"The drawings and specifications constituting the tender documents define the scope of works. Tenderers must satisfy themselves of the adequacy of the descriptions and quantities contained within this Bill of Quantities.",null,null,null,0]
[1.1100000000000001,"M5 Advisors Pty Ltd accepts no liability for any reliance on or use of the Bill of Quantities by any party.",null,null,null,0]
[1.1200000000000001,"Name of Parties",null,null,null,0]
[1.1300000000000001,"Refer to the Specification for Names and Addresses of all parties including Principal, Superintendent and all other Consultants.",null,null,null,0]
[1.1400000000000001,"Location and Description of Site",null,null,null,0]
[1.1500000000000001,"Refer to the Specification and the Drawings for the location of the site, description of the site and overall site dimensions.",null,null,null,0]
[1.1600000000000001,"Scope of the Project",null,null,null,0]
[1.1700000000000002,"The Bills of Quantities have been prepared to assist Contractors to identify and define the scope of work to be included in the Contract.  They are provided as a reference document only.",null,null,null,0]
[1.1800000000000002,"Description of Work",null,null,null,0]
[1.1900000000000002,"The Contractor is referred to the Specification and the Drawings for full description of the works to be carried out under  this Contract.",null,null,null,0]
[1.2000000000000002,"PRICING OF PRELIMINARIES",null,null,null,0]
[1.2100000000000002,"Generally",null,null,null,0]
[1.2200000000000002,"It is the Contractor's responsibility to refer to the documents in pricing the Preliminaries Section of the Bill of Quantities and to allow for any cost implications in connection with the various contractual conditions and requirements referred to therein.",null,null,null,0]
[1.2300000000000002,"The prices inserted against items listed hereunder shall include all expenses involved in complying with the terms thereof.",null,null,null,0]
[1.2400000000000002,"If the Contractor leaves particular references to clauses unpriced it will be deemed that the clauses referred to have their costs included elsewhere or that the Contractor considers that no costs will be incurred in relation to those clauses.",null,null,null,0]
[1.2500000000000002,"Preliminaries",null,null,null,0]
[1.2600000000000002,"Allow for all preliminaries in accordance with the specification and the nominated contract.",null,null,null,0]
[1.2700000000000002,"Quality Assurance",null,null,null,0]
[1.2800000000000002,"Allow for all costs which may be incurred in complying with all quality assurance requirements including hold points, inspections and submissions of product data and records as specified.",null,null,null,0]
[1.2900000000000003,"BILLS OF QUANTITIES",null,null,null,0]
[1.3000000000000003,"Generally",null,null,null,0]
[1.3100000000000003,"The Bills of Quantities is provided as a reference document only.",null,null,null,0]
[1.3200000000000003,"Method of measurement",null,null,null,0]
[1.3300000000000003,"Unless otherwise stated the quantities are measured net as fixed in position.  The quantities are not to be used for ordering of materials purposes.",null,null,null,{"$f":"C35*E35","v":0}]
[1.3400000000000003,"The quantities have been measured in accordance with the Specification and from the Drawings listed at the rear of the Bill of Quantities.",null,null,null,0]
[1.3500000000000003,"The Contractor is advised to recognise the Quantity Surveyors intent to identify all items of cost regardless of the status of the documentation.  It is however the Contractors responsibility to make due allowance in their tender for all costs they consider necessary to complete the project in accordance with the Tender Documents whether or not those costs are identified in this Document.",null,null,null,0]
[1.3600000000000003,"Prices",null,null,null,0]
[1.3700000000000003,"The Contractor will price every item that has a value and use realistic rates to facilitate accurate costing of Variations and Claims. Unpriced items will be deemed to have their cost included elsewhere or to be NIL value. Unrealistic rates in the submitted priced Bills of Quantities will be subject to adjustment in accordance with General Condition of Contract",null,null,null,0]
[1.3800000000000003,"All items of the Bills of Quantities shall be rated and priced individually and not grouped together to equal the amount of the Tender.",null,null,null,0]
[1.3900000000000003,"The Contractor will be deemed to have included in his rates and prices for all work that may be necessary, but is not required to be measured under the detailed rules of measurement within the ASMM.",null,null,null,0]
[1.4000000000000004,"If the Contractor considers that a measured item attaches no individual monetary obligation, he should strike out the money columns to indicate a \"no charge\" item.  If any item is not priced and not struck through but left blank it shall be deemed to have been struck through.  The work or obligation so described shall then be deemed to be included in the rates generally and no financial adjustment may be made by reason of change in quantity to that item.",null,null,null,0]
[1.4100000000000004,"Any errors in extension or addition or both, or correction of incorrect or inconsistent rates or prices (including the inserting of rates or prices wrongly omitted and the deletion of rates or prices wrongly included) discovered by the Superintendent or the Contractor in the priced copy of the Bills of Quantities lodged by the Contractor shall be corrected in a manner agreed between the Contractor and the Superintendent, or in the event of failure to agree, as determined by the Superintendent so that the total of all items in the Priced Bills of Quantities continues to equal the lump sum accepted by the Principal for the execution of the whole of the work to which the Bills of Quantities relates.",null,null,null,0]
[1.4200000000000004,"Staging of the Works",null,null,null,0]
[1.4300000000000004,"The Contractor is referred to the contract documents for full details of the staging of the works and will be deemed to have allowed here or in the rates and prices for all additional costs associated therewith. Measurement items do not generally separate work in different stages.",null,null,null,0]
[1.4400000000000004,"Trade Names",null,null,null,0]
[1.4500000000000004,"All trade names included in this Bill of Quantities will be deemed to have the words 'or equal approved' inserted after them.",null,null,null,0]
[1.4600000000000004,"Dimensions",null,null,null,0]
[1.4700000000000004,"All dimensions given in item descriptions are in millimetres unless otherwise described.",null,null,null,0]
[1.4800000000000004,"Attendance upon nominated sub-contractors",null,null,null,0]
[1.4900000000000004,"Attendance items include for both general and specific attendance. Prices against such attendance items will therefore be deemed to include for all general and specific attendance.",null,null,null,0]
[1.5000000000000004,"Works by others",null,null,null,0]
[1.5100000000000005,"Contractor shall allow for all cooperation of the Principal's supply and installation items as noted.",null,null,null,0]
[1.5200000000000005,"ABBREVIATIONS",null,null,null,0]
[1.5300000000000005,"Where the following abbreviations have been used in the Bills of Quantities they shall have the meanings as indicated below:",null,null,null,0]
[1.5400000000000005,"approx   -   approximately",null,null,null,0]
[1.5500000000000005,"BMT   -   Base Metal Thickness",null,null,null,0]
[1.5600000000000005,"CHS    -     Circular Hollow Section",null,null,null,0]
[1.5700000000000005,"EA   -     Equal Angle",null,null,null,0]
[1.5800000000000005,"dia   -   diameter",null,null,null,0]
[1.5900000000000005,"dwg   -   drawing",null,null,null,0]
[1.6000000000000005,"(f)    -     finished sizes",null,null,null,0]
[1.6100000000000005,"kg     -     kilogram",null,null,null,0]
[1.6200000000000006,"kN     -     kilo Newton",null,null,null,0]
[1.6300000000000006,"mm     -     millimetre",null,null,null,0]
[1.6400000000000006,"m      -     metre",null,null,null,0]
[1.6500000000000006,"m2     -     square metre",null,null,null,{"$f":"C67*E67","v":0}]
[1.6600000000000006,"m3     -     cubic metre",null,null,null,0]
[{"$f":"A68+0.01","v":1.6700000000000006},"max    -     maximum",null,null,null,0]
[1.6800000000000006,"min    -     minimum",null,null,null,0]
[1.6900000000000006,"MPa    -     Megapascals",null,null,null,0]
[1.7000000000000006,"NB   -   Nominal Bore",null,null,null,0]
[1.7100000000000006,"No.    -     number",null,null,null,0]
[1.7200000000000006,"nom    -     nominal",null,null,null,0]
[1.7300000000000006,"OD   -   Outside Diameter",null,null,null,0]
[1.7400000000000007,"PFC    -     Parallel Flanged Channel",null,null,null,0]
[1.7500000000000007,"PVC   -   Polyvinyl Chloride",null,null,null,0]
[1.7600000000000007,"uPVC   -   Unplasticised Polyvinyl Chloride",null,null,null,0]
[1.7700000000000007,"RC   -     Reinforced Concrete",null,null,null,0]
[1.7800000000000007,"RHS    -     Rectangular Hollow Section",null,null,null,0]
[1.7900000000000007,"SHS    -     Square Hollow Section",null,null,null,0]
[1.8000000000000007,"t      -     tonne",null,null,null,0]
[1.8100000000000007,"TFB    -     Taper Flanged Beam",null,null,null,0]
[1.8200000000000007,"TFC    -     Taper Flanged Channel",null,null,null,0]
[1.8300000000000007,"UA   -     Unequal Angle",null,null,null,0]
[1.8400000000000007,"UB     -     Universal Beam",null,null,null,0]
[1.8500000000000008,"UC     -     Universal Column",null,null,null,0]
[1.8600000000000008,"um     -     micro metre",null,null,null,0]
[null,"Total",null,null,null,{"$f":"SUM(F2:F88)","v":0}]
[]
["DEMOLITION"]
["Code","Description","Quantity","Unit","Rate","Total"]
[2.0099999999999998,"GENERALLY",null,null,null,{"$f":"C93*E93","v":0}]
[{"$f":"A93+0.01","v":2.0199999999999996},"Under the terms of the contract, no adjustment to the contract sum will be made for any errors in this Bill of Quantities.",null,null,null,0]
[{"$f":"A94+0.01","v":2.0299999999999994},"The drawings and specifications constituting the tender documents define the scope of works. Tenderers must satisfy themselves of the adequacy of the descriptions and quantities contained within this Bill of Quantities.",null,null,null,0]
[2.0399999999999991,"M5 Advisors Pty Ltd accepts no liability for any reliance on or use of the Bill of Quantities by any party.",null,null,null,0]
[2.0499999999999989,"SPECIFICATION",null,null,null,0]
[2.0599999999999987,"The Contractor is referred to the relevant specification sections for full particulars and will be deemed to have allowed here or in the measurement rates for all costs in connection therewith.",null,null,null,0]
[2.0699999999999985,"DRAWINGS",null,null,null,0]
[2.0799999999999983,"The Contractor is referred to the Drawing Schedule attached to the back of the Bill of Quantities for the drawings and their revision or issue references used in the preparation of this document.",null,null,null,0]
[2.0899999999999981,"PREAMBLE",null,null,null,0]
[2.0999999999999979,"Allow in the following items or in the rates of measured items for all costs incurred in executing the works in accordance with the intent of the drawings and specifications",null,null,null,0]
[2.1099999999999977,"All materials, fittings, etc. removed from site unless otherwise described will become the property of the Contractor who is to cart the same away from site.",null,"item",null,0]
[2.1199999999999974,"Complying with all requirements set out in the Specification, the Drawings and to Authorities' Regulations.",null,"item",null,0]
[2.1299999999999972,"Protection of adjacent existing surfaces, glazing, decorative render mouldings, other finishes, structures and the like items that are likely to be marked, soiled and / or damaged during construction.",null,"item",null,0]
[2.139999999999997,"Making good all damaged surfaces, glazing, decorative render mouldings, other finishes, structures and the like items to their original condition if any damage is caused by the Contractor and / or due to inadequate protection during construction.",null,"item",null,0]
[2.1499999999999968,"All demolition and clearance, labour and materials, scaffolding, needling, strutting, providing temporary walls and screens for protection of people and as dust barriers including altering and adapting same as required during the progress of the works and for taking down and clearing away on completion.",null,"item",null,0]
[2.1599999999999966,"Making good all works disturbed as required following demolition including re-use existing materials, replacing paving, reinstating finishes, filling holes and the like items as required to return disturbed works to their original state.",null,"item",null,0]
[2.1699999999999964,"Coordinating with other trades associated with the demolition.",null,"item",null,0]
[2.1799999999999962,"Bins, cartage and dumping fees.",null,"item",null,0]
[2.1899999999999959,"Cleaning down surfaces on completion required for new work to be carried out.",null,"item",null,0]
[2.1999999999999957,"Cleaning up, removal of all rubbish and debris, removal of all temporary supports and equipment upon completion of all demolition.",null,"item",null,0]
[2.2099999999999955,"The approximate quantities / dimensions of demolition work in this Bill are given as a guide to the Contractor for estimating purposes and are advised to visit the site and inspect the existing structures and site conditions and study the drawings to ascertain the full extent and character of the operations. No claim on the grounds of lack of knowledge or variance in the approximate quantities will be entertained.",null,"item",null,0]
[2.2199999999999953,"ALLOWANCES",null,null,null,0]
[2.2299999999999951,"Allow for testing and inspections",null,"item",null,0]
[2.2399999999999949,"Allow for samples and submissions",null,"item",null,0]
[2.2499999999999947,"Allow for records and record keeping",null,"item",null,0]
[2.2599999999999945,"Allow for dilapidation report",null,"item",null,0]
[2.2699999999999942,"Allow for inspection of the existing premise",null,"item",null,0]
[2.279999999999994,"Allow for all measures to be taken to protect existing works or premises on site or adjoining properties and all occupants",null,"item",null,0]
[2.2899999999999938,"Allow for supporting structures as required",null,"item",null,0]
[2.2999999999999936,"Allow for staging of works",null,"item",null,0]
[2.3099999999999934,"Allow for locating, identifying and protecting existing services not earmarked for demolition",null,"item",null,0]
[2.3199999999999932,"Allow for complying with all requirements of the authorities, obtaining permits and paying all fees including appropriate disposal of demolished material",null,"item",null,0]
[2.329999999999993,"Allow for any additional costs necessary to complete the works and for which no specific provision is included",null,"item",null,0]
[2.3399999999999928,"All necessary handling, shipping, logistics and freight including related fees and charges to ensure satisfactory completion of these works",null,"item",null,0]
[2.3499999999999925,"MEASUREMENT NOTE",null,null,null,0]
[2.3599999999999923,"All items demolished are the property of the SIWA and to be re-used or salvaged as directed",null,"Note",null,0]
[2.3699999999999921,"The following items are measured to assist the contractor and are in addition to those notes nominated on the architectural drawings in particular Dwg A020 Demolition Notes",null,"Note",null,0]
[2.3799999999999919,"HAZARDOUS MATERIAL REMOVAL",null,null,null,0]
[2.3899999999999917,"Remove any hazardous and contaminated material including asbestos, lead paint and remove in accordance with the clients requirements",1,"item",null,0]
[2.3999999999999915,"Allow for all associated decontamination unit, negative air units, dust and air monitoring, testing and re-testing, and final report confirming removal of all asbestos",1,"item",null,0]
[2.4099999999999913,"DEMOLITION",null,null,null,0]
[2.419999999999991,"Allow for the demolition of any structure, element or vegetation to enable the construction of the project including water tank and UXO survey",1,"item",null,0]
[null,"Total",null,null,null,{"$f":"SUM(F92:F134)","v":0}]
[]
["GROUNDWORKS"]
["Code","Description","Quantity","Unit","Rate","Total"]
[3.01,"GENERALLY",null,null,null,{"$f":"C139*E139","v":0}]
[{"$f":"A139+0.01","v":3.0199999999999996},"Under the terms of the contract, no adjustment to the contract sum will be made for any errors in this Bill of Quantities.",null,null,null,0]
[{"$f":"A140+0.01","v":3.0299999999999994},"The drawings and specifications constituting the tender documents define the scope of works. Tenderers must satisfy themselves of the adequacy of the descriptions and quantities contained within this Bill of Quantities.",null,null,null,0]
[3.0399999999999991,"M5 Advisors Pty Ltd accepts no liability for any reliance on or use of the Bill of Quantities by any party.",null,null,null,0]
[3.0499999999999989,"SPECIFICATION",null,null,null,0]
[3.0599999999999987,"The Contractor is referred to the relevant specification sections for full particulars and will be deemed to have allowed here or in the measurement rates for all costs in connection therewith.",null,null,null,0]
[3.0699999999999985,"DRAWINGS",null,null,null,0]
[3.0799999999999983,"The Contractor is referred to the Drawing Schedule attached to the back of the Bill of Quantities for the drawings and their revision or issue references used in the preparation of this document.",null,null,null,0]
[3.0899999999999981,"PREAMBLE",null,null,null,0]
[3.0999999999999979,"Allow in the following items or in the rates of measured items for all costs incurred in executing the works in accordance with the intent of the drawings and specifications",null,null,null,0]
[3.1099999999999977,"Excavating in material as found. The Contractor is to refer to the site soil report and is to allow for ALL types of material to be encountered including all levels of contaminated material (if any) AND rock of any form and for the subsequent correct disposal of surplus material and remediation treatment / stabilisation of material.",null,"item",null,0]
[3.1199999999999974,"Excavation rates will be deemed to include for all designed shoring.",null,"item",null,0]
[3.1299999999999972,"Excavation rates will be deemed to include for any type of backfilling required.",null,"item",null,0]
[3.139999999999997,"Surface preparation to excavated areas and filling.",null,"item",null,0]
[3.1499999999999968,"Excavation rates shall include for any additional disposal of surplus soil due to the increase in bulk of excavated materials.",null,"item",null,0]
[3.1599999999999966,"Filling rates shall include for any decrease in bulk of filling after it has been compacted and shall include for any additional material required.",null,"item",null,0]
[3.1699999999999964,"Any method of compaction to achieve the required density.",null,"item",null,0]
[3.1799999999999962,"Stockpiling of excavated and imported material for reuse.",null,"item",null,0]
[3.1899999999999959,"ALLOWANCES",null,null,null,0]
[3.1999999999999957,"Allow for testing and inspections",null,"item",null,0]
[3.2099999999999955,"Allow for samples and submissions",null,"item",null,0]
[3.2199999999999953,"Allow for records and record keeping",null,"item",null,0]
[3.2299999999999951,"Allow for due diligence report",null,"item",null,0]
[3.2399999999999949,"Allow for giving all notices and complying with all regulations",null,"item",null,0]
[3.2499999999999947,"Allow for keeping excavations free from rain and percolating water by pumping or otherwise",null,"item",null,0]
[3.2599999999999945,"Allow for soft spots",null,"item",null,0]
[3.2699999999999942,"Allow for sediment and erosion control",null,"item",null,0]
[3.279999999999994,"Allow for keeping excavation free from rain and percolating water by pumping or otherwise",null,"item",null,0]
[3.2899999999999938,"Allow for subgrade inspections and fill placement to be supervised by geotechnical engineer",null,"item",null,0]
[3.2999999999999936,"SUB-GRADE PREPARATION",null,null,null,0]
[3.3099999999999934,"Prepare a hazardous substances management plan as specified",1,"item",null,0]
[3.3199999999999932,"Allow for local authority permits including but not limited to earthmoving and HPO permits",1,"item",null,0]
[3.329999999999993,"Civil Works refer to Earthworks Notes on Dwg C0001",null,null,null,0]
[3.3399999999999928,"The Contractor is to visit the site after completion of the demolition (by others) and ascertain the extent of vegetation, soils containing organic and deleterious material, concrete slabs, concrete building footings and pavement areas remaining, which shall be stripped and removed from site",1,"item",null,0]
[3.3499999999999925,"Depressions formed by removal of underground elements and or weakened areas should be cleaned out and filled with compacted imported fill material",1,"item",null,0]
[3.3599999999999923,"Exposed construction areas shall be proof rolled and areas demonstrating excessive movement shall be removed to competent material and replaced with compacted imported fill material",1,"item",null,0]
[3.3699999999999921,"All soft, wet or unsuitable material is to be removed and replaced with approved material",1,"item",null,0]
[3.3799999999999919,"Structural Works refer to Bulk Excavation, Sub-Grade Preparation and Excavation and Site Retention Notes on Dwg S005",null,null,null,0]
[3.3899999999999917,"Strip all vegetation and top soil to a minimum depth as per the geotechnical advice or to design subgrade levels, whichever is lower, to expose natural design founding material",1,"item",null,0]
[3.3999999999999915,"Topsoil to be stockpiled for future landscaping use if directed",1,"item",null,0]
[3.4099999999999913,"DETAILED EXCAVATION IN MATERIAL AS FOUND",null,null,null,0]
[3.419999999999991,"Excavation commencing at reduced level",null,null,null,0]
[3.4299999999999908,"Trench excavation, for strip footings and ground tie beams including blinding layer, 0-1000 total depth",126,"m3",null,0]
[3.4399999999999906,"Trench excavation, for ground beams including blinding layer, 0-1000 total depth",62,"m3",null,0]
[3.4499999999999904,"Pit excavation, for pad footings including blinding layer, 0-1000 total depth",31,"m3",null,0]
[3.4599999999999902,"WORKING SPACE AND/OR MAINTAINING FACES",null,null,null,0]
[3.46999999999999,"Provide for working space and/or maintaining faces to the following",null,null,null,0]
[3.4799999999999898,"Note: formwork has also been measured, therefore depending on the construction methodology, either select 'maintaining faces' or 'formwork'",null,null,null,0]
[3.4899999999999896,"Working space and/or maintaining faces, to strip footings and ground-tie beams excavation, 0-1000 total depth",277,"m2",null,0]
[3.4999999999999893,"Working space and/or maintaining faces, to ground beams excavation, 0-1000 total depth",156,"m2",null,0]
[3.5099999999999891,"Working space and/or maintaining faces, to pad footing excavation, 0-1000 total depth",35,"m2",null,0]
[3.5199999999999889,"FILLING AND BASECOURSES",null,null,null,0]
[3.5299999999999887,"Approved filling including compacting, leveling and trimming surface",null,null,null,0]
[3.5399999999999885,"Engineered fill comprising non-expansive approved select fill placed in uniform layers not exceeding 200mm loose thickness and compacted to achieve a minimum dry density ratio of 98% standard",614,"m3",null,0]
[3.5499999999999883,"Allow for field dry density tests to be carrier out for each layer of filling, to verify specified density ratios",1,"item",null,0]
[3.5599999999999881,"Surplus to spoil to be removed from site",1,"item",null,0]
[3.5699999999999878,"Type 2.3 (CBR 45) base-course compacted to minimum 95% M.D.D including compaction, leveling and trimming surface refer Reinforced Concrete Footpath note on Dwg C0110",null,null,null,0]
[3.5799999999999876,"100 thick base course",44,"m2",null,0]
[3.5899999999999874,"Proof roll and remove all wet and weak areas and replace with select fill material including compaction and excavation",1,"item",null,0]
[3.5999999999999872,"Approved sand filling including compacting, leveling and trimming surface",null,null,null,0]
[3.609999999999987,"50 thick sand bed",1106,"m2",null,0]
[3.6199999999999868,"PLASTIC MEMBRANES",null,null,null,0]
[3.6299999999999866,"Layer of plastic film 0.2mm thick lapped and jointed in accordance with the manufacturer's recommendation",null,null,null,0]
[3.6399999999999864,"Horizontal membrane, laid on approved filling including turn-ups not exceeding 500 high",1106,"m2",null,0]
[3.6499999999999861,"TERMITE TREATMENT",null,null,null,{"$f":"C203*E203","v":0}]
[3.6599999999999859,"Allow for 'Trithor' or equal approved termite management and control system as specified",1,"item",null,0]
[null,"Total",null,null,null,{"$f":"SUM(F138:F204)","v":0}]
[]
["IN-SITU CONCRETE"]
["Code","Description","Quantity","Unit","Rate","Total"]
[4.01,"GENERALLY",null,null,null,{"$f":"C209*E209","v":0}]
[{"$f":"A209+0.01","v":4.0199999999999996},"Under the terms of the contract, no adjustment to the contract sum will be made for any errors in this Bill of Quantities.",null,null,null,0]
[{"$f":"A210+0.01","v":4.0299999999999994},"The drawings and specifications constituting the tender documents define the scope of works. Tenderers must satisfy themselves of the adequacy of the descriptions and quantities contained within this Bill of Quantities.",null,null,null,0]
[4.0399999999999991,"M5 Advisors Pty Ltd accepts no liability for any reliance on or use of the Bill of Quantities by any party.",null,null,null,0]
[4.0499999999999989,"SPECIFICATION",null,null,null,0]
[4.0599999999999987,"The Contractor is referred to the relevant specification sections for full particulars and will be deemed to have allowed here or in the measurement rates for all costs in connection therewith.",null,null,null,0]
[4.0699999999999985,"DRAWINGS",null,null,null,0]
[4.0799999999999983,"The Contractor is referred to the Drawing Schedule attached to the back of the Bill of Quantities for the drawings and their revision or issue references used in the preparation of this document.",null,null,null,0]
[4.0899999999999981,"PREAMBLE",null,null,null,0]
[4.0999999999999979,"Allow in the following items or in the rates of measured items for all costs incurred in executing the works in accordance with the intent of the drawings and specifications",null,null,null,0]
[4.1099999999999977,"Mixing and handling",null,"item",null,0]
[4.1199999999999974,"Placing on ground, membrane, formwork or Bondek",null,"item",null,0]
[4.1299999999999972,"Hoisting and lowering to all levels",null,"item",null,0]
[4.139999999999997,"Pumping",null,"item",null,0]
[4.1499999999999968,"Compacting and packing around reinforcement, conduits, etc",null,"item",null,0]
[4.1599999999999966,"Submission",null,"item",null,0]
[4.1699999999999964,"Shop drawings",null,"item",null,0]
[4.1799999999999962,"Pour joints and other joints not shown on drawings to all levels including formwork",null,"item",null,0]
[4.1899999999999959,"Design joints to all levels (not shown on drawings), such as expansion, contraction, perimeter, keyed, saw-cut and dowelled joints, including formwork and joint sealants",null,"item",null,0]
[4.1999999999999957,"Casting in holding down bolts or the like supplied by others",null,"item",null,0]
[4.2099999999999955,"Additional concrete required for overbreak and to conform with the excavation (where formwork is not used) and other design tolerances",null,"item",null,0]
[4.2199999999999953,"Any necessary special treatment to joints",null,"item",null,0]
[4.2299999999999951,"Core drilling for service pipes and the like",null,"item",null,0]
[4.2399999999999949,"Cutting away for or casting in metalwork items, pipes and the like",null,"item",null,0]
[4.2499999999999947,"Making good after removal of formwork",null,"item",null,0]
[4.2599999999999945,"Concrete machine bases, plinths, kerbs, hobs and the like for services",null,"item",null,0]
[4.2699999999999942,"Concrete sump, pits, trenches and the like (not shown on drawings) including formwork and reinforcement",null,"item",null,0]
[4.279999999999994,"Stair nosing and aluminium framing rebates and setdowns",null,"item",null,0]
[4.2899999999999938,"Tamping surfaces of concrete",null,"item",null,0]
[4.2999999999999936,"Scabbling surfaces",null,"item",null,0]
[4.3099999999999934,"Finishing slabs level, to falls and to crossfalls",null,"item",null,0]
[4.3199999999999932,"Surface dish drains",null,"item",null,0]
[4.329999999999993,"Concrete working slabs under tanking",null,"item",null,0]
[4.3399999999999928,"Allow for any additional costs necessary to complete the works and for which no specific provision is included",null,"item",null,0]
[4.3499999999999925,"Allow for providing samples of materials or finishes",null,"item",null,0]
[4.3599999999999923,"Allow for testing materials, concrete specimens and similar",null,"item",null,0]
[4.3699999999999921,"BLINDING LAYER",null,null,null,0]
[4.3799999999999919,"Allow for 50 thick mass concrete beneath pad footings",4,"m3",null,0]
[4.3899999999999917,"Allow for 50 thick mass concrete beneath strip footings and ground tie beams",13,"m3",null,0]
[4.3999999999999915,"Allow for 50 thick mass concrete beneath ground beams",6,"m3",null,0]
[4.4099999999999913,"N25 VIBRATED REINFORCED CONCRETE GRADE",null,null,null,0]
[4.419999999999991,"Pad footings",28,"m3",null,0]
[4.4299999999999908,"Strip footings and ground tie beams",114,"m3",null,0]
[4.4399999999999906,"Ground beams",56,"m3",null,0]
[4.4499999999999904,"Upturn beams",3,"m3",null,0]
[4.4599999999999902,"Slab on ground 100-200 thick, placed on membrane, including thickenings :[443 m2]",79,"m3",null,0]
[4.46999999999999,"Slab on ground 200-300 thick, placed on membrane, including thickenings",2,"m3",null,0]
[4.4799999999999898,"External slab on ground 100-200 thick, placed on membrane, laid to falls and/or crossfalls including thickenings :[157 m2]",28,"m3",null,0]
[4.4899999999999896,"External ramped slab on ground 100-200 thick, placed on membrane, laid to falls and/or crossfalls including thickenings :[66 m2]",12,"m3",null,0]
[4.4999999999999893,"External apron slab on ground 100-200 thick, placed on membrane, laid to falls and/or crossfalls including thickenings :[60 m2]",3,"m3",null,0]
[4.5099999999999891,"External pedestrian pavement slab on ground 100-200 thick, laid to falls and/or crossfalls :[44M2]",6,"m3",null,0]
[4.5199999999999889,"Stairs including landings, stringers and treads",13,"m3",null,0]
[4.5299999999999887,"150 high x 150 wide hob to water treatment room and access ladder",1,"m3",null,0]
[4.5399999999999885,"150 high x 200 wide hob to fire pump room",1,"m3",null,0]
[4.5499999999999883,"Isolated columns 400 x 400",6,"m3",null,0]
[4.5599999999999881,"Suspended slab 100-200 thick  :[427 m2]",86,"m3",null,0]
[4.5699999999999878,"Attached beams including fold and steps",12,"m3",null,0]
[4.5799999999999876,"Suspended roof slab 100-200 thick laid to falls and/or crossfalls :[43 m2]",8,"m3",null,0]
[4.5899999999999874,"Suspended roof slab 200-300 thick laid to falls and/or crossfalls :[436 m2]",101,"m3",null,0]
[4.5999999999999872,"Attached roof beams including fold and steps",14,"m3",null,0]
[4.609999999999987,"200 high x 200 wide hob to support trusses as detailed on S235",5,"m3",null,0]
[4.6199999999999868,"EXPANSION AND SIMILAR JOINTS",null,null,null,0]
[4.6299999999999866,"Expansion joints and similar including any necessary preparation, formwork and accessories as per typical details on Dwg S050",null,null,null,0]
[4.6399999999999864,"Allow for all sawcut joints as required",1,"item",null,0]
[4.6499999999999861,"Allow for all keyed construction joints as required",1,"item",null,{"$f":"C273*E273","v":0}]
[4.6599999999999859,"Allow for all dowel joints as required",1,"item",null,0]
[{"$f":"A274+0.01","v":4.6699999999999857},"Saw cut joints as per typical detail on Dwg C0110",null,null,null,0]
[4.6799999999999855,"Saw cut joints to external pedestrian pavement slab",17,"m",null,0]
[4.6899999999999853,"INTEGRAL FINISHES",null,null,null,0]
[4.6999999999999851,"Broom finish to the following surfaces",null,null,null,0]
[4.7099999999999849,"Broom finish to external slabs",243,"m2",null,0]
[4.7199999999999847,"Broom finish to external stair treads :[33 m]",10,"m2",null,0]
[4.7299999999999844,"Broom finish to external pedestrian pavement slabs",44,"m2",null,0]
[4.7399999999999842,"Approved integral finish to the following surfaces",null,null,null,0]
[4.749999999999984,"Finish to slab",865,"m2",null,0]
[4.7599999999999838,"Finish to roof slab",478,"m2",null,0]
[4.7699999999999836,"Finish to stair treads :[69 m]",21,"m2",null,0]
[4.7799999999999834,"Finish to stair landings",21,"m2",null,0]
[4.7899999999999832,"Finish to drain :[2 m]",1,"m2",null,0]
[4.7999999999999829,"Finish to hob, 0-250 wide",124,"m",null,0]
[4.8099999999999827,"Approved specialised finish to the following surfaces as specified",null,null,null,0]
[4.8199999999999825,"Tooled grooves not exceeding 15mm depth to loading dock ramp (TGR) as detailed on Dwg A110",58,"m",null,0]
[null,"Total",null,null,null,{"$f":"SUM(F208:F290)","v":0}]
[]
["FORMWORK"]
["Code","Description","Quantity","Unit","Rate","Total"]
[5.01,"GENERALLY",null,null,null,{"$f":"C295*E295","v":0}]
[{"$f":"A295+0.01","v":5.0199999999999996},"Under the terms of the contract, no adjustment to the contract sum will be made for any errors in this Bill of Quantities.",null,null,null,0]
[{"$f":"A296+0.01","v":5.0299999999999994},"The drawings and specifications constituting the tender documents define the scope of works. Tenderers must satisfy themselves of the adequacy of the descriptions and quantities contained within this Bill of Quantities.",null,null,null,0]
[5.0399999999999991,"M5 Advisors Pty Ltd accepts no liability for any reliance on or use of the Bill of Quantities by any party.",null,null,null,0]
[5.0499999999999989,"SPECIFICATION",null,null,null,0]
[5.0599999999999987,"The Contractor is referred to the relevant specification sections for full particulars and will be deemed to have allowed here or in the measurement rates for all costs in connection therewith.",null,null,null,0]
[5.0699999999999985,"DRAWINGS",null,null,null,0]
[5.0799999999999983,"The Contractor is referred to the Drawing Schedule attached to the back of the Bill of Quantities for the drawings and their revision or issue references used in the preparation of this document.",null,null,null,0]
[5.0899999999999981,"PREAMBLE",null,null,null,0]
[5.0999999999999979,"Allow in the following items or in the rates of measured items for all costs incurred in executing the works in accordance with the intent of the drawings and specifications",null,null,null,0]
[5.1099999999999977,"Fabrication, erecting and stripping",null,"item",null,0]
[5.1199999999999974,"Boarding, framing, ties, supports and strutting, etc",null,"item",null,0]
[5.1299999999999972,"Hoisting and lowering to all levels",null,"item",null,0]
[5.139999999999997,"Cleaning, wetting, form oil, etc",null,"item",null,0]
[5.1499999999999968,"Formations up to 2500mm2 sectional area",null,"item",null,0]
[5.1599999999999966,"Setting out to required cambers",null,"item",null,0]
[5.1699999999999964,"Forming cambers other than design cambers",null,"item",null,0]
[5.1799999999999962,"Forming setdowns in tops of slabs to a maximum 50 deep including all necessary formwork",null,"item",null,0]
[5.1899999999999959,"Straight, raking and circular cutting",null,"item",null,0]
[5.1999999999999957,"Cutting around plain and circular columns",null,"item",null,0]
[5.2099999999999955,"Waste",null,"item",null,0]
[5.2199999999999953,"Forming minor penetrations up to 0.25m2",null,"item",null,0]
[5.2299999999999951,"Temporary inspection openings",null,"item",null,0]
[5.2399999999999949,"Linings and supports that remain in position",null,"item",null,0]
[5.2499999999999947,"Allow for propping",null,"item",null,0]
[5.2599999999999945,"Formwork and strutting to support slabs and drop panels within the range of thickness's stated",null,"item",null,0]
[5.2699999999999942,"Strutting of all heights",null,"item",null,0]
[5.279999999999994,"Strutting off level or sloping concrete slabs and level or sloping ground",null,"item",null,0]
[5.2899999999999938,"Strutting left after removal of forms",null,"item",null,0]
[5.2999999999999936,"Forming chamfered, splayed, rounded and moulded external angles and splayed internal angles, rebates, projecting nibs, drip grooves and the like",null,"item",null,0]
[5.3099999999999934,"Perforations for pipes, reinforcing rods and the like",null,"item",null,0]
[5.3199999999999932,"Forming pockets and mortices",null,"item",null,0]
[5.329999999999993,"Forming setdowns less than or equal to 50mm",null,"item",null,0]
[5.3399999999999928,"Forming penetrations for service pipes etc in slabs, beams and walls",null,"item",null,0]
[5.3499999999999925,"Testing and inspections",null,"item",null,0]
[5.3599999999999923,"Filling tie bolt holes",null,"item",null,0]
[5.3699999999999921,"Allow for forming concrete blinding layer beneath pad and strip footings placed between excavated faces to a depth to achieve bearing capacity",null,"item",null,0]
[5.3799999999999919,"Allow for any additional costs necessary to complete the works and for which no specific provision is included for pricing elsewhere",null,"item",null,0]
[5.3899999999999917,"FORMWORK",null,null,null,0]
[5.3999999999999915,"Approved formwork to the following locations wholly in ground",null,null,null,0]
[5.4099999999999913,"Note: maintaining faces in Groundworks trade has also been measured, therefore depending on the construction methodology, either select 'maintaining faces' or 'formwork'",null,null,null,0]
[5.419999999999991,"Face of strip footings and ground-tie beams",277,"m2",null,0]
[5.4299999999999908,"Face of ground beams",156,"m2",null,0]
[5.4399999999999906,"Face of pad footings",35,"m2",null,0]
[5.4499999999999904,"Class 2 formwork to the following locations",null,null,null,0]
[5.4599999999999902,"Soffit of floor slab including strutting",400,"m2",null,0]
[5.46999999999999,"Sides and soffit of attached beams",85,"m2",null,0]
[5.4799999999999898,"Soffit of floor roof slab including strutting",457,"m2",null,0]
[5.4899999999999896,"Sides and soffit of attached roof beams",88,"m2",null,0]
[5.4999999999999893,"Edge of slab",46,"m2",null,0]
[5.5099999999999891,"Face of upturn beams",21,"m2",null,0]
[5.5199999999999889,"Face of isolated column",57,"m2",null,0]
[5.5299999999999887,"Soffit of stair flight",27,"m2",null,0]
[5.5399999999999885,"Soffit of stair landing",21,"m2",null,0]
[5.5499999999999883,"Side of stringer including cutting to profile of treads and riser",9,"m2",null,0]
[5.5599999999999881,"Face of undercut stair riser, 0-250 high",102,"m",null,0]
[5.5699999999999878,"Edge of slab, 0-250 high",107,"m",null,0]
[5.5799999999999876,"Edge of slab on ground, 0-250 high",189,"m",null,0]
[5.5899999999999874,"Edge of setdown in slab, 0-100 high",102,"m",null,0]
[5.5999999999999872,"Edge of grated drain as typical detail on dwg S060",3,"m",null,0]
[5.609999999999987,"Edge of hob, 0-250 high",135,"m",null,0]
[5.6199999999999868,"Form opening 1000 x 1200 in roof slab for access hatch",1,"no",null,0]
[5.6299999999999866,"Form opening 300 x 100 high in hob for drainage cutout",12,"no",null,0]
[5.6399999999999864,"Form rebate in hob 50 high as detail 3 on dwg S235",2,"m",null,0]
[5.6499999999999861,"Form rebate for floor box",12,"no",null,{"$f":"C359*E359","v":0}]
[5.6599999999999859,"Form rebate for sumps",1,"no",null,0]
[{"$f":"A360+0.01","v":5.6699999999999857},"Form rebate for SHS column as typical detail on dwg S060",8,"no",null,0]
[5.6799999999999855,"Allow to form rebates and/or setdowns for tactile indicators and recessed stair nosings as required",1,"item",null,0]
[5.6899999999999853,"Note: Edge formwork to slabs takes into account the use of the C block to create the edge form",null,"note",null,0]
[null,"Total",null,null,null,{"$f":"SUM(F294:F363)","v":0}]
[]
["REINFORCEMENT"]
["Code","Description","Quantity","Unit","Rate","Total"]
[6.01,"GENERALLY",null,null,null,{"$f":"C368*E368","v":0}]
[{"$f":"A368+0.01","v":6.02},"Under the terms of the contract, no adjustment to the contract sum will be made for any errors in this Bill of Quantities.",null,null,null,0]
[{"$f":"A369+0.01","v":6.0299999999999994},"The drawings and specifications constituting the tender documents define the scope of works. Tenderers must satisfy themselves of the adequacy of the descriptions and quantities contained within this Bill of Quantities.",null,null,null,0]
[6.0399999999999991,"M5 Advisors Pty Ltd accepts no liability for any reliance on or use of the Bill of Quantities by any party.",null,null,null,0]
[6.0499999999999989,"SPECIFICATION",null,null,null,0]
[6.0599999999999987,"The Contractor is referred to the relevant specification sections for full particulars and will be deemed to have allowed here or in the measurement rates for all costs in connection therewith.",null,null,null,0]
[6.0699999999999985,"DRAWINGS",null,null,null,0]
[6.0799999999999983,"The Contractor is referred to the Drawing Schedule attached to the back of the Bill of Quantities for the drawings and their revision or issue references used in the preparation of this document.",null,null,null,0]
[6.0899999999999981,"PREAMBLE",null,null,null,0]
[6.0999999999999979,"Allow in the following items or in the rates of measured items for all costs incurred in executing the works in accordance with the intent of the drawings and specifications",null,null,null,0]
[6.1099999999999977,"Cleaning, cutting, bending and fabricating",null,"item",null,0]
[6.1199999999999974,"Rolling margin (no allowance has been made for rolling margin)",null,"item",null,0]
[6.1299999999999972,"Making and delivery to site in the sequence as nominated by the Builder",null,"item",null,0]
[6.139999999999997,"Welding",null,"item",null,0]
[6.1499999999999968,"Fixing including temporary supports other than tie wire and chair supports",null,"item",null,0]
[6.1599999999999966,"Tie wire including tying at all intersections and passings",null,"item",null,0]
[6.1699999999999964,"Hoisting and lowering to all levels",null,"item",null,0]
[6.1799999999999962,"Samples and testing",null,"item",null,0]
[6.1899999999999959,"Inspections",null,"item",null,0]
[6.1999999999999957,"Submissions",null,"item",null,0]
[6.2099999999999955,"Bars of varying lengths, grades and diameters as required by the contract documents",null,"item",null,0]
[6.2199999999999953,"Bars curved or specially bent to radius as required by the contract documents",null,"item",null,0]
[6.2299999999999951,"Bars curved or adapted to suit cambered beams",null,"item",null,0]
[6.2399999999999949,"Links, ties, spacers, stirrups, bindings, ligatures and the like (mass is included in the measured quantities)",null,"item",null,0]
[6.2499999999999947,"Laps and waste on fabric reinforcement (quantities are measured net)",null,"item",null,0]
[6.2599999999999945,"Straight, raking and circular cutting of fabric reinforcement",null,"item",null,0]
[6.2699999999999942,"Tie wire and chair supports",null,"item",null,0]
[6.279999999999994,"Dowel to joints as required",null,"item",null,0]
[6.2899999999999938,"Preparation of a bending schedule",null,"item",null,0]
[6.2999999999999936,"Allow for any additional costs necessary to complete the works and for which no specific provision is included for pricing elsewhere",null,"item",null,0]
[6.3099999999999934,"REINFORCEMENT",null,null,null,0]
[6.3199999999999932,"Allow for preparing and submitting bending schedules as described in the specification for the following total quantities of reinforcement:",1,"item",null,0]
[6.329999999999993,"MESH REINFORCEMENT",null,null,null,0]
[6.3399999999999928,"SL72 mesh to slab on ground",44,"m2",null,0]
[6.3499999999999925,"SL82 mesh to roof slab",340,"m2",null,0]
[6.3599999999999923,"SL92 mesh to slab on ground",1428,"m2",null,0]
[6.3699999999999921,"3-L111TM trench mesh to edge beams",91,"m",null,0]
[6.3799999999999919,"EPOXY COATED BAR REINFORCEMENT",null,null,null,0]
[6.3899999999999917,"Note: The following have been provided by the engineers to determine the indicative quantities only, the contractor must satisfy themselves with the design as documented",null,null,null,0]
[6.3999999999999915,"Pad footings, based on 80kg/m3",2.21,"t",null,0]
[6.4099999999999913,"Ground tie beam footings, based on 80kg/m3",0.73,"t",null,0]
[6.419999999999991,"Ground beams, based on 100-150kg/m3",6.61,"t",null,0]
[6.4299999999999908,"Slab on ground, misc/distribution reinforcement, based on 10kg/m3",1.23,"t",null,0]
[6.4399999999999906,"Strip footings, based on 95-130kg/m3",12.57,"t",null,0]
[6.4499999999999904,"Floor hobs based on 110kg/m3",0.04,"t",null,0]
[6.4599999999999902,"Upturn beams, based on 180kg/m3",0.37,"t",null,0]
[6.46999999999999,"Isolated column, based on 180kg/m3",1.3,"t",null,0]
[6.4799999999999898,"Stairs and landings on ground, based on 150kg/m3",0.44,"t",null,0]
[6.4899999999999896,"Stairs including landings, stringers and treads, based on 150kg/m3",1.39,"t",null,0]
[6.4999999999999893,"Suspended slab, based on 120-125kg/m3",10.33,"t",null,0]
[6.5099999999999891,"Attached beams, based on 150kg/m3",2.4900000000000002,"t",null,0]
[6.5199999999999889,"Suspended roof slab, based on 115-125kg/m3",12.59,"t",null,0]
[6.5299999999999887,"Attached roof beams, based on 130kg/m3",2.41,"t",null,0]
[6.5399999999999885,"Roof hobs based on 110kg/m3",1,"t",null,0]
[null,"Total",null,null,null,{"$f":"SUM(F367:F421)","v":0}]
[]
["TANKING & WATERPROOFING"]
["Code","Description","Quantity","Unit","Rate","Total"]
[7.01,"GENERALLY",null,null,null,{"$f":"C426*E426","v":0}]
[{"$f":"A426+0.01","v":7.02},"Under the terms of the contract, no adjustment to the contract sum will be made for any errors in this Bill of Quantities.",null,null,null,0]
[{"$f":"A427+0.01","v":7.0299999999999994},"The drawings and specifications constituting the tender documents define the scope of works. Tenderers must satisfy themselves of the adequacy of the descriptions and quantities contained within this Bill of Quantities.",null,null,null,0]
[7.0399999999999991,"M5 Advisors Pty Ltd accepts no liability for any reliance on or use of the Bill of Quantities by any party.",null,null,null,0]
[7.0499999999999989,"SPECIFICATION",null,null,null,0]
[7.0599999999999987,"The Contractor is referred to the relevant specification sections for full particulars and will be deemed to have allowed here or in the measurement rates for all costs in connection therewith.",null,null,null,0]
[7.0699999999999985,"DRAWINGS",null,null,null,0]
[7.0799999999999983,"The Contractor is referred to the Drawing Schedule attached to the back of the Bill of Quantities for the drawings and their revision or issue references used in the preparation of this document.",null,null,null,0]
[7.0899999999999981,"PREAMBLE",null,null,null,0]
[7.0999999999999979,"Allow in the following items or in the rates of measured items for all costs incurred in executing the works in accordance with the intent of the drawings and specifications",null,null,null,0]
[7.1099999999999977,"Preparation of tanking surfaces, junctions/angles, laps and waste, labours, fillets, joints, accessories etc.",null,"item",null,0]
[7.1199999999999974,"Forming penetrations and openings in tanked material including flashings, collars and dressing into grooves.",null,"item",null,0]
[7.1299999999999972,"Flashings, jointing, sealing, fillets, reglets and the like as applicable to meet manufacturers requirements as specified",null,"item",null,0]
[7.139999999999997,"Circular work to tanking will be deemed to include for all such work.",null,"item",null,0]
[7.1499999999999968,"Warranties and guarantees",null,"item",null,0]
[7.1599999999999966,"Allow for any additional costs necessary to complete the works and for which no specific provision is included for pricing elsewhere",null,"item",null,0]
[7.1699999999999964,"All necessary handling, shipping, logistics and freight including related fees and charges to ensure satisfactory completion of these works",null,"item",null,0]
[7.1799999999999962,"TANKING MEMBRANE SYSTEM",null,null,null,0]
[7.1899999999999959,"Parchem 'Fosroc Nitoproof 210' waterproof membrane system including substrate preparation, 'Fosroc Proofex Sheetdrain 81' drainage sheet protection, all lapped and jointed in accordance with manufacturer's instructions and as specified",null,null,null,0]
[7.1999999999999957,"Vertical tanking applied on block wall",250,"m2",null,0]
[7.2099999999999955,"Parchem 'Fosroc Nitoproof 810' waterproof membrane system including 'Fosroc Nitoprime 120' substrate preparation, all lapped and jointed in accordance with manufacturer's instructions and as specified",null,null,null,0]
[7.2199999999999953,"Reveals to blockwork walls :[223 m]",89,"m2",null,0]
[7.2299999999999951,"WATERPROOFING MEMBRANE SYSTEM",null,null,null,0]
[7.2399999999999949,"Mapei waterproof membrane system including substrate preparation, lapped and jointed in accordance with manufacturer's instructions and as specified",null,null,null,0]
[7.2499999999999947,"Horizontal membrane applied to concrete slab including the bonded screed laid to falls and crossfalls",70,"m2",null,0]
[7.2599999999999945,"Vertical membrane applied to walls",87,"m2",null,0]
[7.2699999999999942,"Turn-ups not exceeding 250 high including any angle fillet and dressing over fillets at bottom",107,"m",null,0]
[null,"Total",null,null,null,{"$f":"SUM(F425:F452)","v":0}]
[]
["MASONRY"]
["Code","Description","Quantity","Unit","Rate","Total"]
[8.01,"GENERALLY",null,null,null,{"$f":"C457*E457","v":0}]
[{"$f":"A457+0.01","v":8.02},"Under the terms of the contract, no adjustment to the contract sum will be made for any errors in this Bill of Quantities.",null,null,null,0]
[{"$f":"A458+0.01","v":8.0299999999999994},"The drawings and specifications constituting the tender documents define the scope of works. Tenderers must satisfy themselves of the adequacy of the descriptions and quantities contained within this Bill of Quantities.",null,null,null,0]
[8.0399999999999991,"M5 Advisors Pty Ltd accepts no liability for any reliance on or use of the Bill of Quantities by any party.",null,null,null,0]
[8.0499999999999989,"SPECIFICATION",null,null,null,0]
[8.0599999999999987,"The Contractor is referred to the relevant specification sections for full particulars and will be deemed to have allowed here or in the measurement rates for all costs in connection therewith.",null,null,null,0]
[8.0699999999999985,"DRAWINGS",null,null,null,0]
[8.0799999999999983,"The Contractor is referred to the Drawing Schedule attached to the back of the Bill of Quantities for the drawings and their revision or issue references used in the preparation of this document.",null,null,null,0]
[8.0899999999999981,"PREAMBLE",null,null,null,0]
[8.0999999999999979,"Allow in the following items or in the rates of measured items for all costs incurred in executing the works in accordance with the intent of the drawings and specifications",null,null,null,0]
[8.1099999999999977,"Masonry in all classifications to any floor or slab level.",null,"item",null,0]
[8.1199999999999974,"Masonry will be deemed to include for cutting all grooves for turning in edges of flashings, weather bars and similar items and any pointing required.",null,"item",null,0]
[8.1299999999999972,"Blockwork will be deemed to include for all necessary formwork and purpose made clean out blocks associated with core filling.",null,"item",null,0]
[8.139999999999997,"Compaction of core filling by internal vibration or rodding.",null,"item",null,0]
[8.1499999999999968,"Forming all openings including additional joint reinforcement, lintels, sleeves, packing and fire rated sealing around opening, plumbing all angles, jambs and reveals, rough straight cutting and waste, keeping cavities clear of mortar droppings.",null,"item",null,0]
[8.1599999999999966,"Additional wall ties at openings, T-intersections and discontinuations where required.",null,"item",null,0]
[8.1699999999999964,"Scabbling of structure surfaces to receive blockwork.",null,"item",null,0]
[8.1799999999999962,"Building in and grouting metal door frames etc.",null,"item",null,0]
[8.1899999999999959,"All control, movement, expansion and similar joints where not measured hereafter including all necessary special blocks and caulking.",null,"item",null,0]
[8.1999999999999957,"Tying top and ends of masonry wall to concrete or steel including all necessary special blocks and caulking.",null,"item",null,0]
[8.2099999999999955,"All fire rated and non-fire rated caulking, backing rods and the like joints as required.",null,"item",null,0]
[8.2199999999999953,"Damp proof courses and wire bed joint reinforcement strips built into courses of block walls.",null,"item",null,0]
[8.2299999999999951,"Closing all cavities at ends of hollow walls and jambs of openings with purpose made blocks including \"C\" blocks to slab edge",null,"item",null,0]
[8.2399999999999949,"Bands of different bricks or blocks of a course height different to that of the general course height to make up heights of walls, etc.",null,"item",null,0]
[8.2499999999999947,"Corrosion protection to built-in metal items",null,"item",null,0]
[8.2599999999999945,"Forming penetrations for services and building in vent blocks, etc.",null,"item",null,0]
[8.2699999999999942,"Providing samples and sample panels as required",null,"item",null,0]
[8.279999999999994,"Tests and test certificates as required",null,"item",null,0]
[8.2899999999999938,"Allow for any additional costs necessary to complete the works and for which no specific provision is included for pricing elsewhere",null,"item",null,0]
[8.2999999999999936,"BLOCKWORK",null,null,null,0]
[8.3099999999999934,"Standard hollow natural grey 390 x 190 x 190 strength grade 15MPa core-filled block, laid in stretcher bond with cement, lime and sand mortar (1:1:6)",null,null,null,0]
[8.3199999999999932,"190 thick wall",1102,"m2",null,0]
[8.329999999999993,"190 thick wall as retaining wall",270,"m2",null,0]
[8.3399999999999928,"390 x 390 engaged pier",45,"m2",null,0]
[8.3499999999999925,"190 x 190 high bond beam lintel block course refer typical detail Type A on S042",33,"m",null,0]
[8.3599999999999923,"190 x 390 high bond beam lintel block course refer typical detail Type B on S042",11,"m",null,0]
[8.3699999999999921,"190 x 590 high bond beam lintel block course refer typical detail Type C on S042",19,"m",null,0]
[8.3799999999999919,"190 x 590 high bond beam sill block course to large openings refer typical detail on S040",19,"m",null,0]
[8.3899999999999917,"390 wide bond column adjacent large openings refer typical detail on S042",37,"m",null,0]
[8.3999999999999915,"40 high capping to exposed top of 190 thick walls",31,"m",null,0]
[8.4099999999999913,"40 high capping to exposed end of 190 thick walls",11,"m",null,0]
[8.419999999999991,"JOINTS",null,null,null,0]
[8.4299999999999908,"Allow for all joints as typical details on dwg S040",1,"item",null,0]
[8.4399999999999906,"Allow for fire rated joints as typical details on dwg S040",1,"item",null,0]
[8.4499999999999904,"CONCRETE FILLING",null,null,null,0]
[8.4599999999999902,"20MPa concrete grout",null,null,null,0]
[8.46999999999999,"Filling to all cores of 190 thick wall",1102,"m2",null,0]
[8.4799999999999898,"Filling to all cores of 190 thick retaining wall",270,"m2",null,0]
[8.4899999999999896,"Filling to all cores of 390x390 engaged pier",45,"m2",null,0]
[8.4999999999999893,"Filling to all cores 190 x 190 high bond beam lintel",33,"m",null,0]
[8.5099999999999891,"Filling to all cores 190 x 390 high bond beam lintel",11,"m",null,0]
[8.5199999999999889,"Filling to all cores 190 x 590 high bond beam lintel",19,"m",null,0]
[8.5299999999999887,"Filling to all cores 190 x 590 high bond beam sill",19,"m",null,0]
[8.5399999999999885,"Filling to all cores 390 wide bond column",37,"m",null,0]
[8.5499999999999883,"EPOXY COATED BAR REINFORCEMENT",null,null,null,0]
[8.5599999999999881,"Note: The following have been provided by the engineers to determine the indicative quantities only, the contractor must satisfy themselves with the design as documented",null,"note",null,0]
[8.5699999999999878,"Epoxy coated reinforcement to block walls, based on 15kg/m2",16.52,"t",null,0]
[8.5799999999999876,"Epoxy coated reinforcement to block retaining walls, based on 15kg/m2",4.04,"t",null,0]
[8.5899999999999874,"Epoxy coated reinforcement to block engaged piers, based on 15kg/m2",0.67,"t",null,0]
[8.5999999999999872,"BLOCKWORK SUNDRIES",null,null,null,0]
[8.609999999999987,"Clean down face of block wall on completion (net face)",2829,"m2",null,0]
[8.6199999999999868,"Fair facing and pointing face of block wall to receive paint finish",2462,"m2",null,0]
[null,"Total",null,null,null,{"$f":"SUM(F456:F518)","v":0}]
[]
["STEEL, TRUSSES & STAIRS"]
["Code","Description","Quantity","Unit","Rate","Total"]
[9.01,"GENERALLY",null,null,null,{"$f":"C523*E523","v":0}]
[{"$f":"A523+0.01","v":9.02},"Under the terms of the contract, no adjustment to the contract sum will be made for any errors in this Bill of Quantities.",null,null,null,0]
[{"$f":"A524+0.01","v":9.0299999999999994},"The drawings and specifications constituting the tender documents define the scope of works. Tenderers must satisfy themselves of the adequacy of the descriptions and quantities contained within this Bill of Quantities.",null,null,null,0]
[9.0399999999999991,"M5 Advisors Pty Ltd accepts no liability for any reliance on or use of the Bill of Quantities by any party.",null,null,null,0]
[9.0499999999999989,"SPECIFICATION",null,null,null,0]
[9.0599999999999987,"The Contractor is referred to the relevant specification sections for full particulars and will be deemed to have allowed here or in the measurement rates for all costs in connection therewith.",null,null,null,0]
[9.0699999999999985,"DRAWINGS",null,null,null,0]
[9.0799999999999983,"The Contractor is referred to the Drawing Schedule attached to the back of the Bill of Quantities for the drawings and their revision or issue references used in the preparation of this document.",null,null,null,0]
[9.0899999999999981,"PREAMBLE",null,null,null,0]
[9.0999999999999979,"Allow in the following items or in the rates of measured items for all costs incurred in executing the works in accordance with the intent of the drawings and specifications",null,null,null,0]
[9.1099999999999977,"Structural steelwork in all classifications to any floor or slab level",null,"item",null,0]
[9.1199999999999974,"Purlins, girts and battens shall include for fixing at any centres to supports",null,"item",null,0]
[9.1299999999999972,"Structural steel shall include for any additional splicing or fabrication necessary to facilitate transportation or erection",null,"item",null,0]
[9.139999999999997,"Tapered trims to beams",null,"item",null,0]
[9.1499999999999968,"Shop fabrication work, making, delivery, unloading, hoisting, lowering, erection, and fixing",null,"item",null,0]
[9.1599999999999966,"Shop drilling for bolts, rivets or carpenters bolts which secure timbers indicated on steelwork drawings",null,"item",null,0]
[9.1699999999999964,"Site welding",null,"item",null,0]
[9.1799999999999962,"Bolts including nuts and any type of washer which may be required for bolts",null,"item",null,0]
[9.1899999999999959,"Riveting",null,"item",null,0]
[9.1999999999999957,"Casting into structure or drilling or structure for anchor bolts and the like",null,"item",null,0]
[9.2099999999999955,"Wedging and grouting bases and the like",null,"item",null,0]
[9.2199999999999953,"Rolling margin and the mass of welding materials",null,"item",null,0]
[9.2299999999999951,"Machining faces",null,"item",null,0]
[9.2399999999999949,"Shop priming and/or galvanising treatments including all preparation works",null,"item",null,0]
[9.2499999999999947,"Site painting or galvanising bolt heads and nuts after fabrication",null,"item",null,0]
[9.2599999999999945,"Temporary boxes, setting out, casting in and grouting holding down bolt assemblies",null,"item",null,0]
[9.2699999999999942,"Submission of quality assurance details",null,"item",null,0]
[9.279999999999994,"Preparation of shop drawings",null,"item",null,0]
[9.2899999999999938,"Special trial shop assembly",null,"item",null,0]
[9.2999999999999936,"Provision, maintenance and removal of all necessary temporary bracing during erection",null,"item",null,0]
[9.3099999999999934,"Samples and tests",null,"item",null,0]
[9.3199999999999932,"Submissions",null,"item",null,0]
[9.329999999999993,"Warranties",null,"item",null,0]
[9.3399999999999928,"Marking and labeling",null,"item",null,0]
[9.3499999999999925,"Electrical bonding as required",null,"item",null,0]
[9.3599999999999923,"Electrolytic barriers",null,"item",null,0]
[9.3699999999999921,"Inspection of welds including the use of any special techniques as required",null,"item",null,0]
[9.3799999999999919,"Top restraint sections fixed at top of block walls to structural steel roof framing",null,"item",null,0]
[9.3899999999999917,"Static line posts including bracing as per typical detail",null,"item",null,0]
[9.3999999999999915,"Allow for any additional costs necessary to complete the works and for which no specific provision is included for pricing elsewhere",null,"item",null,0]
[9.4099999999999913,"All necessary handling, shipping, logistics and freight including related fees and charges to ensure satisfactory completion of these works",null,"item",null,0]
[9.419999999999991,"TRUSSES",null,null,null,0]
[9.4299999999999908,"Allow for prefabricated roof trusses fixed to concrete hob with 100x8 equal angles and M20 chemsets and bolts including all other necessary fixings as detailed on Dwg S235 (Roof Area on Plan = 600m2)",1,"item",null,0]
[9.4399999999999906,"Metal cyclonic roof battens nominally 40 x 90 fixed to trusses as per manufacturer's recommendation and as specified (area taken from roof sheeting)",660,"m2",null,0]
[9.4499999999999904,"STEEL ELEMENTS",null,null,null,0]
[9.4599999999999902,"Steel members to be finished as required including all necessary fixings as detailed and specified",null,null,null,0]
[9.46999999999999,"Allow for SHS columns to opening for installation of mechanical louvres (W1-02 to W1-07)",1,"item",null,0]
[9.4799999999999898,"Allow for SHS columns to opening for installation of mesh screen and gates entry (1-00/D1)",1,"item",null,0]
[9.4899999999999896,"Allow for SHS columns to opening for installation of mesh screen and gates entry (1-00/D2)",1,"item",null,0]
[null,"Total",null,null,null,{"$f":"SUM(F522:F571)","v":0}]
[]
["ROOFING & CLADDING"]
["Code","Description","Quantity","Unit","Rate","Total"]
[10.01,"GENERALLY",null,null,null,{"$f":"C576*E576","v":0}]
[{"$f":"A576+0.01","v":10.02},"Under the terms of the contract, no adjustment to the contract sum will be made for any errors in this Bill of Quantities.",null,null,null,0]
[{"$f":"A577+0.01","v":10.029999999999999},"The drawings and specifications constituting the tender documents define the scope of works. Tenderers must satisfy themselves of the adequacy of the descriptions and quantities contained within this Bill of Quantities.",null,null,null,0]
[10.039999999999999,"M5 Advisors Pty Ltd accepts no liability for any reliance on or use of the Bill of Quantities by any party.",null,null,null,0]
[10.049999999999999,"SPECIFICATION",null,null,null,0]
[10.059999999999999,"The Contractor is referred to the relevant specification sections for full particulars and will be deemed to have allowed here or in the measurement rates for all costs in connection therewith.",null,null,null,0]
[10.069999999999999,"DRAWINGS",null,null,null,0]
[10.079999999999998,"The Contractor is referred to the Drawing Schedule attached to the back of the Bill of Quantities for the drawings and their revision or issue references used in the preparation of this document.",null,null,null,0]
[10.089999999999998,"PREAMBLE",null,null,null,0]
[10.099999999999998,"Allow in the following items or in the rates of measured items for all costs incurred in executing the works in accordance with the intent of the drawings and specifications",null,null,null,0]
[10.109999999999998,"Roofing in all classifications at any height above ground.",null,"item",null,0]
[10.119999999999997,"Laps, painting of laps, method of fixing.",null,"item",null,0]
[10.129999999999997,"Any spacing of structural supports.",null,"item",null,0]
[10.139999999999997,"Raking and circular cutting.",null,"item",null,0]
[10.149999999999997,"All cladding areas not exceeding 250 wide.",null,"item",null,0]
[10.159999999999997,"Forming openings to cladding.",null,"item",null,0]
[10.169999999999996,"All turn ups and turn downs, rolled edges at barges, turning ends of sheets up or down across troughs, bending sheets over ridges and similar.",null,"item",null,0]
[10.179999999999996,"All junctions, mitres, troughs, notching over or dressing into corrugations, ends and similar items to flashings.",null,"item",null,0]
[10.189999999999996,"Providing thermal movement in the roof installation including movement in joints and fastenings.",null,"item",null,0]
[10.199999999999996,"All separating strips, packers, bird proofing, filler strips, foam closures, caulking, sealants and similar items.",null,"item",null,0]
[10.209999999999996,"Junctions between the roof panel system and walls / penetrations to be filled with a fire rated gun applied canister urethane insulation",null,"item",null,0]
[10.219999999999995,"Fill gaps with canister fire rated foam filler to all composite or sandwich panels",null,"item",null,0]
[10.229999999999995,"Fascias and barges shall include for junctions, mitred at corners and the like.",null,"item",null,0]
[10.239999999999995,"All necessary seismic restraints and seismic certification.",null,"item",null,0]
[10.249999999999995,"Electrolytic barriers.",null,"item",null,0]
[10.259999999999994,"Guarantees",null,"item",null,0]
[10.269999999999994,"Shop drawings",null,"item",null,0]
[10.279999999999994,"Allow for providing samples and prototypes",null,"item",null,0]
[10.289999999999994,"Allow for certificates",null,"item",null,0]
[10.299999999999994,"Allow for any additional costs necessary to complete the works and for which no specific provision is included for pricing elsewhere",null,"item",null,0]
[10.309999999999993,"All necessary handling, shipping, logistics and freight including related fees and charges to ensure satisfactory completion of these works",null,"item",null,0]
[10.319999999999993,"METAL ROOF SHEETING",null,null,null,0]
[10.329999999999993,"Aluminium roof sheeting 0.9 thick 'Dimond Veedek' complete with Trimdek profile, colorcote finish, cyclone rated fixings, all laps, trims and accessories in accordance with manufacturer's recommendations and as specified",null,null,null,0]
[10.339999999999993,"Metal roof sheeting fixed to metal battens as specified (MRS)",660,"m2",null,0]
[10.349999999999993,"Safety mesh 'Ausmesh 300' or equal approved PVC coated stainless steel roof mesh as specified",660,"m2",null,0]
[10.359999999999992,"CSR Bradford sarking or equal approved comprising 'Sarking Thermoseal 730' medium duty reflective foil with 60 thick roof blanket 'Anticon 60' insulation fixed in accordance with manufacturers recommendations and as specified",660,"m2",null,0]
[10.369999999999992,"Aluminium flashings and cappings comprising 0.9 thick 'Dimond Alumigard Corrguate' complete with corrugated profile, colorcote finish, cyclone rated fixings, all laps, trims and accessories in accordance with manufacturer's recommendations and as specified",null,null,null,0]
[10.379999999999992,"Hip capping 250-500 girth fixed to metal sheeting to match roof system",39,"m",null,0]
[10.389999999999992,"Ridge capping 250-500 girth fixed to metal sheeting to match roof system",30,"m",null,0]
[10.399999999999991,"Barge capping 250-500 girth fixed to metal sheeting to match roof system",25,"m",null,0]
[10.409999999999991,"Fascia capping 250-500 girth fixed to and including 18 thick marine ply to match roof system",142,"m",null,0]
[10.419999999999991,"Apron flashing 250-500 girth fixed to metal sheeting to match roof system",15,"m",null,0]
[10.429999999999991,"Allow for all necessary flashing and sealing around pipes",1,"item",null,0]
[10.439999999999991,"Allow for any necessary fall arrest system comprising of anchors and static line all in accordance with manufacturers instructions (if required)",1,"item",null,0]
[10.44999999999999,"GUTTERS",null,null,null,0]
[10.45999999999999,"0.6 BMT Stramit 'Eziform' gutter system comprising 316 grade stainless steel, heavy duty powdercoated aluminium brackets at specified centres, joins, laps, supports, straps, packers, clips and similar items as specified",null,null,null,0]
[10.46999999999999,"250 dia. half round gutter fixed to and including gutter brackets at 1000 centres max. and over strapping",118,"m",null,0]
[10.47999999999999,"Downpipe outlet to suit 150 dia. gutter",10,"no",null,0]
[10.48999999999999,"DOWNPIPES",null,null,null,0]
[10.499999999999989,"0.6 BMT downpipe comprising 316 grade stainless steel with supports, specialised stainless steel brackets, clips and similar items",null,null,null,0]
[10.509999999999989,"150 dia downpipe including brackets as detailed on Dwg A310 & A320",100,"m",null,0]
[10.519999999999989,"METAL WALL CLADDING",null,null,null,0]
[10.529999999999989,"Aluminium roof sheeting 0.9 thick 'Dimond Veedek' complete with Trimdek profile, colorcote finish, cyclone rated fixings, all laps, trims and accessories in accordance with manufacturer's recommendations and as specified",null,null,null,0]
[10.539999999999988,"Metal sheet wall cladding including all trims and cappings, fixed to and including furring channels or battens",8,"m2",null,0]
[10.549999999999988,"Sarking as specified",8,"m2",null,0]
[10.559999999999988,"METAL SOFFIT CLADDING",null,null,null,0]
[10.569999999999988,"Aluminium soffit sheeting 0.9 thick 'Dimond Alumigard Corrguate' complete with corrugated profile, colorcote finish, cyclone rated fixings, all laps, trims and accessories in accordance with manufacturer's recommendations and as specified",null,null,null,0]
[10.579999999999988,"Metal sheet soffit cladding fixed to and including 40 x 90 battens",139,"m2",null,0]
[10.589999999999987,"Trim flashing to perimeter 0-250 girth fixed to metal sheeting to match cladding system",225,"m",null,0]
[null,"Total",null,null,null,{"$f":"SUM(F575:F634)","v":0}]
[]
["METALWORK"]
["Code","Description","Quantity","Unit","Rate","Total"]
[11.01,"GENERALLY",null,null,null,{"$f":"C639*E639","v":0}]
[{"$f":"A639+0.01","v":11.02},"Under the terms of the contract, no adjustment to the contract sum will be made for any errors in this Bill of Quantities.",null,null,null,0]
[{"$f":"A640+0.01","v":11.03},"The drawings and specifications constituting the tender documents define the scope of works. Tenderers must satisfy themselves of the adequacy of the descriptions and quantities contained within this Bill of Quantities.",null,null,null,0]
[11.04,"M5 Advisors Pty Ltd accepts no liability for any reliance on or use of the Bill of Quantities by any party.",null,null,null,0]
[11.049999999999999,"SPECIFICATION",null,null,null,0]
[11.059999999999999,"The Contractor is referred to the relevant specification sections for full particulars and will be deemed to have allowed here or in the measurement rates for all costs in connection therewith.",null,null,null,0]
[11.069999999999999,"DRAWINGS",null,null,null,0]
[11.079999999999998,"The Contractor is referred to the Drawing Schedule attached to the back of the Bill of Quantities for the drawings and their revision or issue references used in the preparation of this document.",null,null,null,0]
[11.089999999999998,"PREAMBLE",null,null,null,0]
[11.099999999999998,"Allow in the following items or in the rates of measured items for all costs incurred in executing the works in accordance with the intent of the drawings and specifications",null,null,null,0]
[11.109999999999998,"Metalwork  terminals, scrolls, mitres and similar items to balustrades and handrails will be deemed included.",null,"item",null,0]
[11.119999999999997,"Metalwork items will be deemed to include for all fixings including any necessary drilling in any background whatsoever.",null,"item",null,0]
[11.129999999999997,"All necessary seismic restraints and seismic certification.",null,"item",null,0]
[11.139999999999997,"Inspections",null,"item",null,0]
[11.149999999999997,"Samples",null,"item",null,0]
[11.159999999999997,"Submission of shop drawings",null,"item",null,0]
[11.169999999999996,"Submission of tests, manufacturer's data and certificates",null,"item",null,0]
[11.179999999999996,"Providing maintenance manuals",null,"item",null,0]
[11.189999999999996,"Removal and cleaning of temporary coatings",null,"item",null,0]
[11.199999999999996,"Allow for any additional costs necessary to complete the works and for which no specific provision is included for pricing elsewhere",null,"item",null,0]
[11.209999999999996,"All necessary handling, shipping, logistics and freight including related fees and charges to ensure satisfactory completion of these works",null,"item",null,0]
[11.219999999999995,"LOUVRES",null,null,null,0]
[11.229999999999995,"Austral Monsoon or equal approved 'AME100HV' two stage louvres with powdercoat finish and 316 grade stainless steel vermin mesh as specified",null,null,null,0]
[11.239999999999995,"Louvre 800 x 2400 high",1,"no",null,0]
[11.249999999999995,"Louvre 860 x 2400 high",2,"no",null,0]
[11.259999999999994,"Louvre 890 x 2400 high",4,"no",null,0]
[11.269999999999994,"Louvre to suit mechanical vents approx. 500 x 250",7,"no",null,0]
[11.279999999999994,"Louvre to suit mechanical vents approx. 900 x 300",2,"no",null,0]
[11.289999999999994,"SCREENS & GATES",null,null,null,0]
[11.299999999999994,"Metal entry screen comprising 1.2mm 316 grade stainless steel mesh similar to 'Alspec Invisi-maxx Cyclonic Screen' fixed to and including powdercoated SHS steel frame and all necessary hardware as per Dwg A460",null,null,null,0]
[11.309999999999993,"Metal entry screen approx. 2810 x 3400 high overall comprising single gate 975 x 2250 high overall fixed to and including SHS steel frame and all necessary hardware as per Dwg A460 Detail 9",1,"no",null,0]
[11.319999999999993,"Metal entry screen approx. 4475 x 3400 high overall comprising pair of mesh gates 2200 x 2250 high overall fixed to and including SHS steel frame and all necessary hardware as per Dwg A460 Detail 8",1,"no",null,0]
[11.329999999999993,"Metal screen enclosure comprising powdercoated SHS steel frame, stainless steel mesh sides and 4 thick folded aluminium roof lining fixed to and including top hats all fixed to the slab and blockwork wall including all necessary hardware as per Dwg A372",null,null,null,0]
[11.339999999999993,"Metal screen enclosure to air-conditioning units approx. 6500 long x 2400 high x 625 wide as per Dwg A372",1,"no",null,0]
[11.349999999999993,"Single metal gate to air-conditioning unit enclosure, 1200 wide x 2350 high including all necessary hardware fixed to metal screen enclosure",5,"no",null,0]
[11.359999999999992,"Window debris protection screens approx. 425 deep comprising 1.2mm 316 grade stainless steel mesh front similar to 'Alspec Invisi-maxx Cyclonic Screen' with 10 thick trespa panel surrounding the frame fixed to and including powdercoated SHS framing as detailed on Dwg A370 & 371",null,null,null,0]
[11.369999999999992,"To suit window unit 1000 x 1000 high overall",3,"no",null,0]
[11.379999999999992,"To suit window unit 1000 x 1600 high overall",2,"no",null,0]
[11.389999999999992,"To suit window unit 1000 x 1800 high overall",15,"no",null,0]
[11.399999999999991,"To suit window unit 2000 x 1800 high overall",3,"no",null,0]
[11.409999999999991,"FENCING & GATES",null,null,null,0]
[11.419999999999991,"Commercial aluminium chain link mesh fencing or PVC coated galv wire chain link mesh fencing comprising top-mid-bottom rails and posts complete with concrete footings including all hardware, fixings and accessories as specified",null,null,null,0]
[11.429999999999991,"1800 high chain link mesh fence",110,"m",null,0]
[11.439999999999991,"Pair of metal mesh gates, 2360 x 2100 high overall including all necessary hardware",1,"no",null,0]
[11.44999999999999,"Pair of metal mesh gates, 2640 x 2060 high overall including all necessary hardware",1,"no",null,0]
[11.45999999999999,"Sliding mesh gate approx. 10200 long including all necessary hardware and frame to make a cantilevered gate",1,"no",null,0]
[11.46999999999999,"BALUSTRADES & HANDRAILS",null,null,null,0]
[11.47999999999999,"50 dia x 2mm stainless steel grade 316 handrail including tactile dome button, raking, turns, ends and all fixings and brackets as detailed on Dwgs A350 and as specified (HR1, HR2, BAL)",48,"m",null,0]
[11.48999999999999,"50 dia x 2mm stainless steel grade 316 handrail  'Bridco or equal approved' to external ramp and stairs including tactile dome button, raking, turns, ends and all fixings and brackets as detailed on Dwgs A352 and as specified",57,"m",null,0]
[11.499999999999989,"900 high galvanised metal balustrade system to stairs incorporating HR1 handrail including brackets, fixings, welded connections and accessories as detailed on Dwg A350",12,"m",null,0]
[11.509999999999989,"External (basic) balustrade to stairs (HR2)",9,"m",null,0]
[11.519999999999989,"EDGE PROTECTION",null,null,null,0]
[11.529999999999989,"Dock edge rubber projection approx. 910 long x 100 x 100 high fixed to blockwork wall with stainless steel fixings as specified (BG-LD)",6,"no",null,0]
[11.539999999999988,"Dock vehicle rubber bumper stops approx. 250 long x 100 x 406 high fixed to blockwork wall with stainless steel fixings as specified (BG-V)",4,"no",null,0]
[11.549999999999988,"Corner guard rubber protection approx. 90 x 90 x 800 high fixed to concrete columns and blockwork walls including all necessary stainless steel fixings as specified (CG1 & CG2)",23,"no",null,0]
[11.559999999999988,"Verge safety barriers' column protection system comprising metal barrier rail on four posts fixed to concrete slab including all necessary and specified fixings (CPS)",2,"no",null,0]
[11.569999999999988,"Barrier Group Bulldog' downpipe protector / guard comprising galv steel cover and stainless steel fixings as specified and detailed on Dwg A310 & A320 (DPG)",2,"no",null,0]
[11.579999999999988,"LEDA Security' or equal approved bollard complete with concrete footing, base plate, fixings and paint finish as specified (BOL)",4,"no",null,0]
[11.589999999999987,"Barrier Group' loading dock barrier rail complete with W-beam, bolt-ball fence posts and epoxy finish as specified",null,null,null,0]
[11.599999999999987,"Loading dock barrier with two rails as detailed on Dwg A311 & A320 (BR)",19,"m",null,0]
[11.609999999999987,"Swing gate approx. 1200 wide as detailed on Dwg A320",4,"no",null,0]
[11.619999999999987,"ROLLER SHUTTERS",null,null,null,0]
[11.629999999999987,"Cyclone rated 'Mirage Doors S100' motorised roller shutter with powdercoat finish and 100mm slats complete with motor, rails, galvanised finishes and all hardware as specified",null,null,null,0]
[11.639999999999986,"Roller shutter approx. 3160 x 3200 high, both motorised and chain operation",2,"no",null,0]
[11.649999999999986,"LADDERS",null,null,null,{"$f":"C703*E703","v":0}]
[11.659999999999986,"Aluminium 'Safya' ladders installed as per manufacturer's recommendations and as specified",null,null,null,0]
[{"$f":"A704+0.01","v":11.669999999999986},"Roof access ladder nominal 2700 long comprising 'Safya' ceiling retractable ladder and sliding access hatch including flashing kit  'LD498T' as specified (LDR1)",1,"no",null,0]
[11.679999999999986,"Aluminium access ladder to fire water tanks 'Safya ST-580' approx. 5.2m long including all necessary fixings and guard rails as specified (LDR2)",1,"no",null,0]
[11.689999999999985,"Aluminium access ladder to fuel store 'Safya ST-580' approx. 2.5m long including all necessary fixings and guard rails as specified (LDR3)",1,"no",null,0]
[11.699999999999985,"INSULATED PANEL",null,null,null,0]
[11.709999999999985,"150 thick insulated panel (IP1) fixed to concrete floor and soffit complete with pair of doors 2120 x 2040 high overall of unequal leaves (1200 and 920 widths)",51,"m2",null,0]
[11.719999999999985,"MISCELLANEOUS METALWORK",null,null,null,0]
[11.729999999999984,"Security counter screen comprising 6.0 thick minimum polycarbonate shield fixed to and including 30 wide aluminium frame to suit opening approx. 1500 wide x 1130 high as detailed on Dwg A400",1,"no",null,0]
[11.739999999999984,"Wall duct 'ECD' with clip-on cover approx. 125 wide x 40 deep mounted on fibre cement lining as specified",33,"m",null,0]
[11.749999999999984,"Drainage outlet stainless steel mesh cover approx. 300 wide x 100 high fixed to concrete hob as detailed on Dwg A310",10,"no",null,0]
[11.759999999999984,"Galvanised metal grate approx. 1200 long x 300 wide over open concrete trench as specified and detailed on Dwg C010",1,"no",null,0]
[11.769999999999984,"Floor boxes as specified",12,"no",null,0]
[11.779999999999983,"Flagpole as specified",1,"no",null,0]
[null,"Total",null,null,null,{"$f":"SUM(F638:F716)","v":0}]
[]
["PARTITIONS & LININGS"]
["Code","Description","Quantity","Unit","Rate","Total"]
[12.01,"GENERALLY",null,null,null,{"$f":"C721*E721","v":0}]
[{"$f":"A721+0.01","v":12.02},"Under the terms of the contract, no adjustment to the contract sum will be made for any errors in this Bill of Quantities.",null,null,null,0]
[{"$f":"A722+0.01","v":12.03},"The drawings and specifications constituting the tender documents define the scope of works. Tenderers must satisfy themselves of the adequacy of the descriptions and quantities contained within this Bill of Quantities.",null,null,null,0]
[12.04,"M5 Advisors Pty Ltd accepts no liability for any reliance on or use of the Bill of Quantities by any party.",null,null,null,0]
[12.049999999999999,"SPECIFICATION",null,null,null,0]
[12.059999999999999,"The Contractor is referred to the relevant specification sections for full particulars and will be deemed to have allowed here or in the measurement rates for all costs in connection therewith.",null,null,null,0]
[12.069999999999999,"DRAWINGS",null,null,null,0]
[12.079999999999998,"The Contractor is referred to the Drawing Schedule attached to the back of the Bill of Quantities for the drawings and their revision or issue references used in the preparation of this document.",null,null,null,0]
[12.089999999999998,"PREAMBLE",null,null,null,0]
[12.099999999999998,"Allow in the following items or in the rates of measured items for all costs incurred in executing the works in accordance with the intent of the drawings and specifications",null,null,null,0]
[12.109999999999998,"Metal framing shall be deemed to include for everything necessary to complete the framing systems including seismic loads, methods of fixing, intersections, special noggings and similar such as deflection heads and the like, acoustic and fire rating sealants etc.",null,"item",null,0]
[12.119999999999997,"Special noggings will be deemed to include all additional framing, plywood sheeting, timber, cleats, fixings and similar items required to support all fixtures and equipment.",null,"item",null,0]
[12.129999999999997,"Providing any necessary additional channels, studs, trimmers, noggings and furrings at angles, intersections, around all sides of openings and where required for fixing of fittings and the like to stud framing.",null,"item",null,0]
[12.139999999999997,"Channels, studs, trimmers, noggings, fixings etc in forming angles, corner mullions, free ends and fixed ends to metal framing.",null,"item",null,0]
[12.149999999999997,"All necessary sealants, caulking, acoustic and fire rated seals and fillers and all similar accessories.",null,"item",null,0]
[12.159999999999997,"Forming openings in metal framing including linings.",null,"item",null,0]
[12.169999999999996,"Bolts complete with nuts and any type of washer including drilling members to be fixed",null,"item",null,0]
[12.179999999999996,"Drilling structure for masonry bolt anchors and the like",null,"item",null,0]
[12.189999999999996,"Factory finishes including touching up on completion",null,"item",null,0]
[12.199999999999996,"Temporary grounds and the like",null,"item",null,0]
[12.209999999999996,"Preparation of base",null,"item",null,0]
[12.219999999999995,"Cutting and/or making good around pipes, sanitary fixtures and the like",null,"item",null,0]
[12.229999999999995,"Expansion/movement joints",null,"item",null,0]
[12.239999999999995,"Metal trims or similar reinforcement to external and internal angles and edges",null,"item",null,0]
[12.249999999999995,"Extra labour in work to narrow widths",null,"item",null,0]
[12.259999999999994,"Arrises, rounded or splayed external angles, fair edges, rounded or splayed edges, internal angles, intersections to groins and the like",null,"item",null,0]
[12.269999999999994,"Quirks, grooves, V-joints and the like next to frames etc, or at junction with other finishes",null,"item",null,0]
[12.279999999999994,"Forming flush joints with other finishes in the same plane",null,"item",null,0]
[12.289999999999994,"Metal lathing over chases, recesses or reveals to provide key",null,"item",null,0]
[12.299999999999994,"All necessary elements to achieve the acoustic requirements",null,"item",null,0]
[12.309999999999993,"All necessary seismic restraints and seismic certification",null,"item",null,0]
[12.319999999999993,"Shop drawings",null,"item",null,0]
[12.329999999999993,"Quality assurance",null,"item",null,0]
[12.339999999999993,"Inspections",null,"item",null,0]
[12.349999999999993,"Data submission",null,"item",null,0]
[12.359999999999992,"Warranties",null,"item",null,0]
[12.369999999999992,"Curing of finished work",null,"item",null,0]
[12.379999999999992,"Covering, protecting and masking adjacent surfaces",null,"item",null,0]
[12.389999999999992,"Cleaning on completion",null,"item",null,0]
[12.399999999999991,"Stainless steel trims to joints, junctions and corners",null,"item",null,0]
[12.409999999999991,"Allow for additional marine-ply noggings to enable satisfactory fixing behind all fixtures",null,"Item",null,0]
[12.419999999999991,"Allow for any additional costs necessary to complete the works and for which no specific provision is included for pricing elsewhere",null,"item",null,0]
[12.429999999999991,"All necessary handling, shipping, logistics and freight including related fees and charges to ensure satisfactory completion of these works",null,"item",null,0]
[12.439999999999991,"PARTITION SYSTEMS",null,null,null,0]
[12.44999999999999,"Partition systems comprising Rondo framing as specified; types nominated in assist in locating specification",null,null,null,0]
[12.45999999999999,"Partition system comprising 92 stud fixed to underside of concrete slab with 9 thick FC lining to 2800 high on one side (quantity measured to 2.8m)",69,"m2",null,0]
[12.46999999999999,"Partition system comprising 92 stud fixed to underside of concrete slab with 9 thick FC lining to 2800 high on both sides (quantity measured to 2.8m)",112,"m2",null,0]
[12.47999999999999,"Partition system comprising 92 stud fixed to underside of concrete slab with 9 thick FC lining to 2800 high on one side and 9 thick FC lining to underside of slab on other side and fully sealed (quantity measured to u/s of slab)",280,"m2",null,0]
[12.48999999999999,"Partition system comprising 16 furring channels and 9 thick FC lining on one side fixed to concrete column (quantity measured to 2.8m)",15,"m2",null,0]
[12.499999999999989,"Partition system comprising 92 stud fixed to underside of concrete slab with 9 thick FC lining to underside of slab (quantity measured to u/s of slab)",146,"m2",null,0]
[12.509999999999989,"Partition system comprising 92 stud fixed to underside of concrete slab with 9 thick FC lining to underside of slab (quantity measured to u/s of slab)",234,"m2",null,0]
[12.519999999999989,"Allow for additional marine-ply noggings to enable satisfactory fixing behind all fixtures",1,"Item",null,0]
[12.529999999999989,"INSULATION AND SARKING",null,null,null,0]
[12.539999999999988,"CSR Bradford insulation or equal approved comprising 90 thick R2.2 minimum Acoustigard wall batts fixed within walls in accordance with manufacturers recommendations and as specified",null,null,null,0]
[12.549999999999988,"90 thick wall insulation to internal partitions",307,"m2",null,0]
[12.559999999999988,"CSR Bradford insulation or equal approved comprising 90 thick R2.7 Gold High Performance wall batts fixed within walls in accordance with manufacturers recommendations and as specified",null,null,null,0]
[12.569999999999988,"90 thick wall insulation to partition types (inside face of blockwork walls)",379,"m2",null,0]
[12.579999999999988,"CSR Bradford insulation or equal approved comprising 25 thick Acoustigard 18 wall insulation fixed to and including Rondo clips and furring channels in accordance with manufacturers recommendations and as specified",null,null,null,0]
[12.589999999999987,"25 thick wall insulation to partition type P11 (inside face of blockwork walls)",272,"m2",null,0]
[12.599999999999987,"CSR Bradford vapour permeable insulation or equal approved comprising 'Polyair Performa 8.0 XHD' wall sarking fixed in accordance with manufacturers recommendations and as specified",null,null,null,0]
[12.609999999999987,"Vapour barrier sarking to outer face of metal stud walls behind blockwork",379,"m2",null,0]
[12.619999999999987,"WALL TRIMS AND SKIRTING",null,null,null,0]
[12.629999999999987,"Window reveal comprising fibre cement lining to sides and head complete with square set finish as per Dwg A410",101,"m",null,0]
[12.639999999999986,"Window sill comprising 25 thick MDF as per Dwg A410",26,"m",null,0]
[null,"Total",null,null,null,{"$f":"SUM(F720:F784)","v":0}]
[]
["CEILINGS"]
["Code","Description","Quantity","Unit","Rate","Total"]
[13.01,"GENERALLY",null,null,null,{"$f":"C789*E789","v":0}]
[{"$f":"A789+0.01","v":13.02},"Under the terms of the contract, no adjustment to the contract sum will be made for any errors in this Bill of Quantities.",null,null,null,0]
[{"$f":"A790+0.01","v":13.03},"The drawings and specifications constituting the tender documents define the scope of works. Tenderers must satisfy themselves of the adequacy of the descriptions and quantities contained within this Bill of Quantities.",null,null,null,0]
[13.04,"M5 Advisors Pty Ltd accepts no liability for any reliance on or use of the Bill of Quantities by any party.",null,null,null,0]
[13.049999999999999,"SPECIFICATION",null,null,null,0]
[13.059999999999999,"The Contractor is referred to the relevant specification sections for full particulars and will be deemed to have allowed here or in the measurement rates for all costs in connection therewith.",null,null,null,0]
[13.069999999999999,"DRAWINGS",null,null,null,0]
[13.079999999999998,"The Contractor is referred to the Drawing Schedule attached to the back of the Bill of Quantities for the drawings and their revision or issue references used in the preparation of this document.",null,null,null,0]
[13.089999999999998,"PREAMBLE",null,null,null,0]
[13.099999999999998,"Allow in the following items or in the rates of measured items for all costs incurred in executing the works in accordance with the intent of the drawings and specifications",null,null,null,0]
[13.109999999999998,"Suspended ceilings shall include for the type and spacing of supporting metalwork, method of securing brackets hangers, seismic loads and similar items.",null,"item",null,0]
[13.119999999999997,"The method of securing brackets and hangers to any background.",null,"item",null,0]
[13.129999999999997,"Metal trims, reinforcement and similar to external angles, internal angles, shadow line angles, edges etc. to suspended ceilings and linings.",null,"item",null,0]
[13.139999999999997,"Cutting and making good around sprinkler heads, pipes and the like",null,"item",null,0]
[13.149999999999997,"Openings for access panels, lighting recesses, air grilles and the like",null,"item",null,0]
[13.159999999999997,"Junction of ceilings with walls, columns, pelmets and the like including any cutting, edge trims, accessories, shadowline angles and additional suspension",null,"item",null,0]
[13.169999999999996,"All necessary sealants, caulking, acoustic and fire rated seals and fillers and all similar accessories.",null,"item",null,0]
[13.179999999999996,"All necessary elements to achieve the acoustic requirements.",null,"item",null,0]
[13.189999999999996,"All necessary seismic restraints and seismic certification.",null,"item",null,0]
[13.199999999999996,"Expansion joints, control joints and similar",null,"item",null,0]
[13.209999999999996,"Access panels and hatches including necessary battens, fasteners and edge trims",null,"item",null,0]
[13.219999999999995,"Shop drawings",null,"item",null,0]
[13.229999999999995,"Quality assurance",null,"item",null,0]
[13.239999999999995,"Data submission",null,"item",null,0]
[13.249999999999995,"Maintenance manual",null,"item",null,0]
[13.259999999999994,"Samples",null,"item",null,0]
[13.269999999999994,"Tests",null,"item",null,0]
[13.279999999999994,"Inspections",null,"item",null,0]
[13.289999999999994,"Prototypes",null,"item",null,0]
[13.299999999999994,"Supply of spare tiles and accessories",null,"item",null,0]
[13.309999999999993,"Protection",null,"item",null,0]
[13.319999999999993,"Warranties",null,"item",null,0]
[13.329999999999993,"Seismic requirements",null,"item",null,0]
[13.339999999999993,"Allow for stainless steel trims to joints, junctions and corners",null,"item",null,0]
[13.349999999999993,"Allow for any additional costs necessary to complete the works and for which no specific provision is included for pricing elsewhere",null,"item",null,0]
[13.359999999999992,"All necessary handling, shipping, logistics and freight including related fees and charges to ensure satisfactory completion of these works",null,"item",null,0]
[13.369999999999992,"SUSPENDED CEILING SYSTEM",null,null,null,0]
[13.379999999999992,"Suspended ceiling system comprising 9 thick fibre cement lining with flush set joints fixed to and including concealed suspension system as specified",null,null,null,0]
[13.389999999999992,"Suspended ceiling system, 0-1000 below structure (FC1 & FC2)",204,"m2",null,0]
[13.399999999999991,"Suspended acoustic tiled ceiling system comprising 'Armstrong RH100 Bioguard OP' system with 'BP1611G' anti-microbial tiles and 'Peakform' suspension grid system as specified",null,null,null,0]
[13.409999999999991,"Suspended ceiling system, 0-1000 below structure (ACT1)",279,"m2",null,0]
[13.419999999999991,"BULKHEADS",null,null,null,0]
[13.429999999999991,"Bulkhead comprising square set 9 thick fibre cement lining fixed on and including supporting framing system as specified",null,null,null,0]
[13.439999999999991,"Vertical bulkhead 250-500 high (BHD)",31,"m",null,0]
[13.44999999999999,"INSULATION",null,null,null,0]
[13.45999999999999,"CSR Bradford insulation comprising 75 thick Supertel R2.2 with Thermoseal 750 heavy duty foil laminate or equal approved insulation fixed to concrete slab in accordance with manufacturers recommendations and nominated fasteners and anchors as specified",null,null,null,0]
[13.46999999999999,"75 thick ceiling insulation fixed to underside of slab (INS-S)",279,"m2",null,0]
[13.47999999999999,"CSR Bradford insulation comprising 40 thick Supertel R1.2 with Thermoseal 730 medium duty foil laminate or equal approved insulation fixed to concrete slab in accordance with manufacturers recommendations and nominated fasteners and anchors as specified",null,null,null,0]
[13.48999999999999,"40 thick ceiling insulation fixed to underside of concrete roof slab (INS-R)",441,"m2",null,0]
[13.499999999999989,"ACCESS PANELS",null,null,null,0]
[13.509999999999989,"Access panel system complete with provision for roof access ladder (ladder measured in metalwork) and weatherproof sliding cover on roof side of hatch including all necessary framing, trims, fittings, hardware and similar as specified",null,null,null,0]
[13.519999999999989,"Access panel for roof access ladder including sliding cover as detailed on Dwg A380",1,"no",null,0]
[13.529999999999989,"Access panel system to match ceiling including all necessary framing, trims, fittings, hardware and similar as specified",null,null,null,0]
[13.539999999999988,"450 x 450 access panel to fibre cement flush set ceiling",8,"no",null,0]
[null,"Total",null,null,null,{"$f":"SUM(F788:F842)","v":0}]
[]
["ALUMINIUM WINDOWS & DOORS"]
["Code","Description","Quantity","Unit","Rate","Total"]
[14.01,"GENERALLY",null,null,null,{"$f":"C847*E847","v":0}]
[{"$f":"A847+0.01","v":14.02},"Under the terms of the contract, no adjustment to the contract sum will be made for any errors in this Bill of Quantities.",null,null,null,0]
[{"$f":"A848+0.01","v":14.03},"The drawings and specifications constituting the tender documents define the scope of works. Tenderers must satisfy themselves of the adequacy of the descriptions and quantities contained within this Bill of Quantities.",null,null,null,0]
[14.04,"M5 Advisors Pty Ltd accepts no liability for any reliance on or use of the Bill of Quantities by any party.",null,null,null,0]
[14.049999999999999,"SPECIFICATION",null,null,null,0]
[14.059999999999999,"The Contractor is referred to the relevant specification sections for full particulars and will be deemed to have allowed here or in the measurement rates for all costs in connection therewith.",null,null,null,0]
[14.069999999999999,"DRAWINGS",null,null,null,0]
[14.079999999999998,"The Contractor is referred to the Drawing Schedule attached to the back of the Bill of Quantities for the drawings and their revision or issue references used in the preparation of this document.",null,null,null,0]
[14.089999999999998,"PREAMBLE",null,null,null,0]
[14.099999999999998,"Allow in the following items or in the rates of measured items for all costs incurred in executing the works in accordance with the intent of the drawings and specifications",null,null,null,0]
[14.109999999999998,"All cover plates, reveal capping and trims, flashings, coloured caulking, backing rods, etc. as required by the drawings and as specified between units, at junctions with adjacent structure etc.",null,"item",null,0]
[14.119999999999997,"All necessary aluminium, steel or timber angles, trims, beads, plates, packers and blocks, fixings and accessories.",null,"item",null,0]
[14.129999999999997,"All fixing of units to surrounding substrate of whatever nature including all brackets and fasteners.",null,"item",null,0]
[14.139999999999997,"All standard and non-standard sill and sub-sill sections, end closure pieces and the like as shown and detailed on the drawings.",null,"item",null,0]
[14.149999999999997,"Hardware to windows including hinges, locks, weather seals, sash operators, sliding tracks, handles and the like.",null,"item",null,0]
[14.159999999999997,"Isolation of dissimilar materials including weather seal gasket separation strips.",null,"item",null,0]
[14.169999999999996,"Cleaning down upon completion including removing all temporary protective coatings.",null,"item",null,0]
[14.179999999999996,"Under flashing and flashings to heads, jambs and sills and their building in.",null,"item",null,0]
[14.189999999999996,"Weatherstrips, weather bars, weather moulds, stops, packers and the like.",null,"item",null,0]
[14.199999999999996,"All glass, glazing and glazing compounds, sealant and caulking and pointing, gaskets, glazing tapes, spacing strips, spacing tapes, spacers, setting blocks, compression wedges and the like.",null,"item",null,0]
[14.209999999999996,"Matching cover plate fixed between glass louvre window system and glass window system",null,"item",null,0]
[14.219999999999995,"All safety marking.",null,"item",null,0]
[14.229999999999995,"Samples and prototypes",null,"item",null,0]
[14.239999999999995,"Inspections",null,"item",null,0]
[14.249999999999995,"Submissions",null,"item",null,0]
[14.259999999999994,"Shop drawings",null,"item",null,0]
[14.269999999999994,"Design, testing and certifications",null,"item",null,0]
[14.279999999999994,"Warranties and guarantees",null,"item",null,0]
[14.289999999999994,"Maintenance manuals",null,"item",null,0]
[14.299999999999994,"Allow for any additional costs necessary to complete the works and for which no specific provision is included for pricing elsewhere",null,"item",null,0]
[14.309999999999993,"All necessary handling, shipping, logistics and freight including related fees and charges to ensure satisfactory completion of these works",null,"item",null,0]
[14.319999999999993,"INTERNAL GLAZING UNITS",null,null,null,0]
[14.329999999999993,"Internal glazing system 'BrisAluminium Supreme 92' or equal approved with powdercoat finish and glass thickness as specified and fixed in accordance with manufacturers instructions and as specified",null,null,null,0]
[14.339999999999993,"Window unit 400 x 2400 high overall",1,"no",null,0]
[14.349999999999993,"Window unit 700 x 2400 high overall",7,"no",null,0]
[14.359999999999992,"Window unit 1000 x 2400 high overall",1,"no",null,0]
[14.369999999999992,"EXTERNAL GLAZING UNITS",null,null,null,0]
[14.379999999999992,"Aluminium framed glazing units 'Alspec glazing with Alspec Hunter Evo 150 framing' or equal approved with powdercoat finish and with Modern Glass as specified and fixed in accordance with manufacturers instructions and as specified",null,null,null,0]
[14.389999999999992,"Window unit 1000 x 1000 high overall",5,"no",null,0]
[14.399999999999991,"Window unit 1000 x 1600 high overall",1,"no",null,0]
[14.409999999999991,"Window unit 1000 x 1800 high overall",14,"no",null,0]
[14.419999999999991,"Window unit 2000 x 1800 high overall",3,"no",null,0]
[14.429999999999991,"SUNDRY ITEMS",null,null,null,0]
[14.439999999999991,"Safety film '3M Fasara' glazing film as specified",4,"m2",null,0]
[14.44999999999999,"Safety film '3M Fasara' glazing film in a band as specified",7,"m",null,0]
[null,"Total",null,null,null,{"$f":"SUM(F846:F891)","v":0}]
[]
["DOORS & HARDWARE"]
["Code","Description","Quantity","Unit","Rate","Total"]
[15.01,"GENERALLY",null,null,null,{"$f":"C896*E896","v":0}]
[{"$f":"A896+0.01","v":15.02},"Under the terms of the contract, no adjustment to the contract sum will be made for any errors in this Bill of Quantities.",null,null,null,0]
[{"$f":"A897+0.01","v":15.03},"The drawings and specifications constituting the tender documents define the scope of works. Tenderers must satisfy themselves of the adequacy of the descriptions and quantities contained within this Bill of Quantities.",null,null,null,0]
[15.04,"M5 Advisors Pty Ltd accepts no liability for any reliance on or use of the Bill of Quantities by any party.",null,null,null,0]
[15.049999999999999,"SPECIFICATION",null,null,null,0]
[15.059999999999999,"The Contractor is referred to the relevant specification sections for full particulars and will be deemed to have allowed here or in the measurement rates for all costs in connection therewith.",null,null,null,0]
[15.069999999999999,"DRAWINGS",null,null,null,0]
[15.079999999999998,"The Contractor is referred to the Drawing Schedule attached to the back of the Bill of Quantities for the drawings and their revision or issue references used in the preparation of this document.",null,null,null,0]
[15.089999999999998,"PREAMBLE",null,null,null,0]
[15.099999999999998,"Allow in the following items or in the rates of measured items for all costs incurred in executing the works in accordance with the intent of the drawings and specifications",null,null,null,0]
[15.109999999999998,"Fabricating door frames to the required profile and dimensions to suit thickness of the door and the wall, framing, linings etc in which it is to be fixed",null,"item",null,0]
[15.119999999999997,"Grout filling to door frames and all sealants, insulation packed into frames, fixings and all other sundries and accessories required",null,"item",null,0]
[15.129999999999997,"Glass and glazing to glazed panels including fixing in position, timber sub-frame around openings for glazing and louvres",null,"item",null,0]
[15.139999999999997,"Weatherstrips, weather bars, weather moulds, stops, fixing angles, packers and the like",null,"item",null,0]
[15.149999999999997,"Fixing hardware to any background",null,"item",null,0]
[15.159999999999997,"Samples and prototypes",null,"item",null,0]
[15.169999999999996,"Design, testing and certifications",null,"item",null,0]
[15.179999999999996,"Submissions",null,"item",null,0]
[15.189999999999996,"Provision of a key schedule",null,"item",null,0]
[15.199999999999996,"Maintenance manuals",null,"item",null,0]
[15.209999999999996,"Warranties",null,"item",null,0]
[15.219999999999995,"Master keying, keying alike, construction keying or similar systems for the keying of locks",null,"item",null,0]
[15.229999999999995,"Allow for any additional costs necessary to complete the works and for which no specific provision is included for pricing elsewhere",null,"item",null,0]
[15.239999999999995,"All necessary handling, shipping, logistics and freight including related fees and charges to ensure satisfactory completion of these works",null,"item",null,0]
[15.249999999999995,"FIRE RATED TIMBER DOORS",null,null,null,0]
[15.259999999999994,"Fire door and frame set 'Pyropanel or equal approved' comprising 48 thick fire rated solid core door, sheeted both sides with 4.0 thick exterior grade plywood and 1.5 thick minimum steel door frames as specified",null,null,null,0]
[15.269999999999994,"Door 920 x 2040 high",5,"no",null,0]
[15.279999999999994,"Door 920 x 2040 high with metal facing with 1.2mm zincanneal steel sheet to all sides, external door",2,"no",null,0]
[15.289999999999994,"TIMBER DOORS",null,null,null,0]
[15.299999999999994,"40-45 thick solid core door sheeted both sides with 4 thick exterior grade plywood including minimum 10 thick edge strips to all edges as specified",null,null,null,0]
[15.309999999999993,"Note: where noted with 'metal facing' this door has been specified as 45 thick door with 1.2mm zincanneal steel sheet to all sides and all doors hinged unless noted otherwise.",null,"note",null,0]
[15.319999999999993,"Door 770 x 2040 high",1,"no",null,0]
[15.329999999999993,"Door 820 x 2040 high",3,"no",null,0]
[15.339999999999993,"Door 820 x 2040 high with viewing panel",1,"no",null,0]
[15.349999999999993,"Door 920 x 2040 high with metal facing",1,"no",null,0]
[15.359999999999992,"Door 920 x 2040 high with mechanical grille",3,"no",null,0]
[15.369999999999992,"Door 920 x 2040 high with viewing panel",3,"no",null,0]
[15.379999999999992,"Door 920 x 2340 high",4,"no",null,0]
[15.389999999999992,"Door 920 x 2340 high with metal facing",1,"no",null,0]
[15.399999999999991,"Door 920 x 2340 high with mechanical grille",2,"no",null,0]
[15.409999999999991,"Door 920 x 2340 high with viewing panel",10,"no",null,0]
[15.419999999999991,"Pairs of doors 1490 x 2040 high with unequal leaves",2,"no",null,0]
[15.429999999999991,"Pairs of doors 1490 x 2340 high with unequal leaves",2,"no",null,0]
[15.439999999999991,"Pairs of doors 1640 x 2340 high with equal leaves",2,"no",null,0]
[15.44999999999999,"Pairs of doors 1840 x 1700 high with equal leaves to fire cabinet",1,"no",null,0]
[15.45999999999999,"Pairs of doors 1840 x 2340 high with equal leaves with viewing panel 200 wide x 1560 high and mechanical grille 680 wide x 280 high in both doors",1,"no",null,0]
[15.46999999999999,"METAL DOOR FRAMES",null,null,null,0]
[15.47999999999999,"Steel door frame 1.1 thick minimum internal and 1.6 thick minimum external comprising head and jambs including latch keeps, striking plates and similar items",null,null,null,0]
[15.48999999999999,"Frame to suit door 770 x 2040 high",1,"no",null,0]
[15.499999999999989,"Frame to suit door 820 x 2040 high",4,"no",null,0]
[15.509999999999989,"Frame to suit door 920 x 2040 high",6,"no",null,0]
[15.519999999999989,"Frame to suit door 920 x 2040 high, external",1,"no",null,0]
[15.529999999999989,"Frame to suit door 920 x 2340 high",16,"no",null,0]
[15.539999999999988,"Frame to suit door 920 x 2340 high, external",1,"no",null,0]
[15.549999999999988,"Frame to suit pair of doors 1490 x 2040 high with unequal leaves",2,"no",null,0]
[15.559999999999988,"Frame to suit pair of doors 1490 x 2340 high with unequal leaves",2,"no",null,0]
[15.569999999999988,"Frame to suit pair of doors 1640 x 2340 high with equal leaves",2,"no",null,0]
[15.579999999999988,"Frame to suit pairs of doors 1840 x 1700 high with equal leaves, external",1,"no",null,0]
[15.589999999999987,"Frame to suit pair of doors 1840 x 2340 high with equal leaves",1,"no",null,0]
[15.599999999999987,"DOOR HARDWARE",null,null,null,0]
[15.609999999999987,"Allow for door hardware comprising hinges, closers, locks, furniture, hooks, bolts, catches, stops, threshold plates, electric strikes, smoke seals, acoustic seals and kickplates to doors including master keying",1,"item",null,0]
[15.619999999999987,"ACCORDIAN DOOR",null,null,null,0]
[15.629999999999987,"Accordian door 'Unifold Soundguard 40' to suit space 2150 long x 2600 high comprising 12 thick HMR MDF with selected finish, fixed to and including track, head and jambs as detailed on Dwg A470",2,"no",null,0]
[null,"Total",null,null,null,{"$f":"SUM(F895:F958)","v":0}]
[]
["RESILENT FINISHES"]
["Code","Description","Quantity","Unit","Rate","Total"]
[16.010000000000002,"GENERALLY",null,null,null,{"$f":"C963*E963","v":0}]
[{"$f":"A963+0.01","v":16.020000000000003},"Under the terms of the contract, no adjustment to the contract sum will be made for any errors in this Bill of Quantities.",null,null,null,0]
[{"$f":"A964+0.01","v":16.030000000000005},"The drawings and specifications constituting the tender documents define the scope of works. Tenderers must satisfy themselves of the adequacy of the descriptions and quantities contained within this Bill of Quantities.",null,null,null,0]
[16.040000000000006,"M5 Advisors Pty Ltd accepts no liability for any reliance on or use of the Bill of Quantities by any party.",null,null,null,0]
[16.050000000000008,"SPECIFICATION",null,null,null,0]
[16.060000000000009,"The Contractor is referred to the relevant specification sections for full particulars and will be deemed to have allowed here or in the measurement rates for all costs in connection therewith.",null,null,null,0]
[16.070000000000011,"DRAWINGS",null,null,null,0]
[16.080000000000013,"The Contractor is referred to the Drawing Schedule attached to the back of the Bill of Quantities for the drawings and their revision or issue references used in the preparation of this document.",null,null,null,0]
[16.090000000000014,"PREAMBLE",null,null,null,0]
[16.100000000000016,"Allow in the following items or in the rates of measured items for all costs incurred in executing the works in accordance with the intent of the drawings and specifications",null,null,null,0]
[16.110000000000017,"Floor finishes shall include for all base treatment and preparation",null,"item",null,0]
[16.120000000000019,"All raking and circular cutting",null,"item",null,0]
[16.13000000000002,"Floor finishes shall be deemed to include for any width of carpet and sheeting required",null,"item",null,0]
[16.140000000000022,"Internal and external angles to skirtings",null,"item",null,0]
[16.150000000000023,"Stop ends and outlets to channels, ducts and similar items",null,"item",null,0]
[16.160000000000025,"Expansion joints, control joints, movement joints and similar items to sheet and carpet finishes",null,"item",null,0]
[16.170000000000027,"Cover strips, wall trims, division strips, joints and general accessories",null,"item",null,0]
[16.180000000000028,"Sealants and similar accessories to floor finishes",null,"item",null,0]
[16.19000000000003,"Inspections",null,"item",null,0]
[16.200000000000031,"Submissions",null,"item",null,0]
[16.210000000000033,"Provision of samples",null,"item",null,0]
[16.220000000000034,"Warranties",null,"item",null,0]
[16.230000000000036,"Maintenance manuals",null,"item",null,0]
[16.240000000000038,"Spares (minimum 1% of total quantity installed)",null,"item",null,0]
[16.250000000000039,"Substrate leveling as required",null,"item",null,0]
[16.260000000000041,"Allow for any additional costs necessary to complete the works and for which no specific provision is included for pricing elsewhere",null,"item",null,0]
[16.270000000000042,"All necessary handling, shipping, logistics and freight including related fees and charges to ensure satisfactory completion of these works",null,"item",null,0]
[16.280000000000044,"RESILIENT FINISHES",null,null,null,0]
[16.290000000000045,"2.0 thick acoustic vinyl flooring 'Gerflor Taralay Impressions' with R10 finish and welded butt joints fixed with approved adhesive in accordance with manufacturer's recommendations",null,null,null,0]
[16.300000000000047,"Vinyl flooring including any necessary preparation work and leveling compound applied to substrate (RF1,2,3)",226,"m2",null,0]
[16.310000000000048,"Vinyl flooring including any necessary preparation work and leveling compound applied to substrate (RF7,8)",121,"m2",null,0]
[16.32000000000005,"Vinyl flooring applied to stairs and landing including any necessary preparation work and leveling compound applied to substrate (RF7,8)",26,"m2",null,0]
[16.330000000000052,"100 high skirting to match above",300,"m",null,0]
[16.340000000000053,"2.0 thick safety vinyl flooring 'Gerflor Ultra' with welded butt joints fixed with approved adhesive in accordance with manufacturer's recommendations",null,null,null,0]
[16.350000000000055,"Vinyl safety flooring laid to falls and/or cross falls including any necessary preparation work and leveling compound applied to substrate (RF4)",25,"m2",null,0]
[16.360000000000056,"150 high skirting to match above",40,"m",null,0]
[16.370000000000058,"2.0 thick anti-static vinyl flooring 'Mipolam Affinity EL7' with R10 finish and welded butt joints fixed with approved adhesive in accordance with manufacturer's recommendations",null,null,null,0]
[16.380000000000059,"Vinyl anti-static flooring including any necessary preparation work and leveling compound applied to substrate (RF5)",16,"m2",null,0]
[16.390000000000061,"100 high skirting to match above",22,"m",null,0]
[16.400000000000063,"Vinyl wall sheeting 'Gerflor Mural Calypso' fixed with approved adhesive in accordance with manufacturer's recommendations",null,null,null,0]
[16.410000000000064,"Vinyl wall sheeting (WV1)",26,"m2",null,0]
[16.420000000000066,"SUNDRIES",null,null,null,0]
[16.430000000000067,"Entrance mat 'Miliken Ontera OBEX' complete with aluminium frame as specified (EM1)",10,"m2",null,0]
[16.440000000000069,"Braille tactile signs' ceramic tactile 300 x 300 laid in 300mm wide strips as specified",18,"m",null,0]
[16.45000000000007,"Seton 'Polypad' rubber tactile 300 x 600 laid in 300mm wide strips as specified",7,"m",null,0]
[16.460000000000072,"Latham' or equal approved external stair nosing as specified (NS1)",28,"m",null,0]
[16.470000000000073,"Tredsafe' or equal approved internal stair nosing to vinyl flooring as specified (SN1)",31,"m",null,0]
[16.480000000000075,"Tredsafe' or equal approved internal stair nosing to concrete stair finish as specified (SN2)",27,"m",null,0]
[null,"Total",null,null,null,{"$f":"SUM(F962:F1010)","v":0}]
[]
["TILING"]
["Code","Description","Quantity","Unit","Rate","Total"]
[17.010000000000002,"GENERALLY",null,null,null,{"$f":"C1015*E1015","v":0}]
[{"$f":"A1015+0.01","v":17.020000000000003},"Under the terms of the contract, no adjustment to the contract sum will be made for any errors in this Bill of Quantities.",null,null,null,0]
[{"$f":"A1016+0.01","v":17.030000000000005},"The drawings and specifications constituting the tender documents define the scope of works. Tenderers must satisfy themselves of the adequacy of the descriptions and quantities contained within this Bill of Quantities.",null,null,null,0]
[17.040000000000006,"M5 Advisors Pty Ltd accepts no liability for any reliance on or use of the Bill of Quantities by any party.",null,null,null,0]
[17.050000000000008,"SPECIFICATION",null,null,null,0]
[17.060000000000009,"The Contractor is referred to the relevant specification sections for full particulars and will be deemed to have allowed here or in the measurement rates for all costs in connection therewith.",null,null,null,0]
[17.070000000000011,"DRAWINGS",null,null,null,0]
[17.080000000000013,"The Contractor is referred to the Drawing Schedule attached to the back of the Bill of Quantities for the drawings and their revision or issue references used in the preparation of this document.",null,null,null,0]
[17.090000000000014,"PREAMBLE",null,null,null,0]
[17.100000000000016,"Allow in the following items or in the rates of measured items for all costs incurred in executing the works in accordance with the intent of the drawings and specifications",null,null,null,0]
[17.110000000000017,"Tiling shall include for all base treatment and preparation.",null,"item",null,0]
[17.120000000000019,"All raking and circular cutting to tile and stone finishes.",null,"item",null,0]
[17.13000000000002,"Internal and external angles.",null,"item",null,0]
[17.140000000000022,"Tiling shall include for trims, special edge finished tiles and finishes to all exposed tile edges",null,"item",null,0]
[17.150000000000023,"Expansion joints, control joints, movement joints and similar items to tiling.",null,"item",null,0]
[17.160000000000025,"Sealants and similar accessories to tiling.",null,"item",null,0]
[17.170000000000027,"Inspections",null,"item",null,0]
[17.180000000000028,"Submissions",null,"item",null,0]
[17.19000000000003,"Provision of samples",null,"item",null,0]
[17.200000000000031,"Spares (minimum 1% of total quantity installed)",null,"item",null,0]
[17.210000000000033,"Operation and maintenance manuals",null,"item",null,0]
[17.220000000000034,"Allow for any additional costs necessary to complete the works and for which no specific provision is included for pricing elsewhere",null,"item",null,0]
[17.230000000000036,"FLOOR & WALL TILES",null,null,null,0]
[17.240000000000038,"Metz 'Artistry Pearl' 300 x 300 floor tile with P5/R12 microgrip finish fixed with approved adhesive and Kerapoxy grout as specified (Note: bonded screed bed part of the waterproofing system)",null,null,null,0]
[17.250000000000039,"Internal floor tiling graded to falls and/or cross falls (FT1)",45,"m2",null,0]
[17.260000000000041,"Metz 'Europave Cove Grigio'200 x 105 coved skirting tile with approved adhesive and grout as specified",null,null,null,0]
[17.270000000000042,"Coved skirting tile (SK2)",67,"m",null,0]
[17.280000000000044,"Metz 'Artistry White' 300 x 600 wall tiles with Plain P1 finish fixed with approved adhesive and grout as specified",null,null,null,0]
[17.290000000000045,"600 x 300 wall tiles (WT1)",62,"m2",null,0]
[null,"Total",null,null,null,{"$f":"SUM(F1014:F1043)","v":0}]
[]
["PAINTING"]
["Code","Description","Quantity","Unit","Rate","Total"]
[18.010000000000002,"GENERALLY",null,null,null,{"$f":"C1048*E1048","v":0}]
[{"$f":"A1048+0.01","v":18.020000000000003},"Under the terms of the contract, no adjustment to the contract sum will be made for any errors in this Bill of Quantities.",null,null,null,0]
[{"$f":"A1049+0.01","v":18.030000000000005},"The drawings and specifications constituting the tender documents define the scope of works. Tenderers must satisfy themselves of the adequacy of the descriptions and quantities contained within this Bill of Quantities.",null,null,null,0]
[18.040000000000006,"M5 Advisors Pty Ltd accepts no liability for any reliance on or use of the Bill of Quantities by any party.",null,null,null,0]
[18.050000000000008,"SPECIFICATION",null,null,null,0]
[18.060000000000009,"The Contractor is referred to the relevant specification sections for full particulars and will be deemed to have allowed here or in the measurement rates for all costs in connection therewith.",null,null,null,0]
[18.070000000000011,"DRAWINGS",null,null,null,0]
[18.080000000000013,"The Contractor is referred to the Drawing Schedule attached to the back of the Bill of Quantities for the drawings and their revision or issue references used in the preparation of this document.",null,null,null,0]
[18.090000000000014,"PREAMBLE",null,null,null,0]
[18.100000000000016,"Allow in the following items or in the rates of measured items for all costs incurred in executing the works in accordance with the intent of the drawings and specifications",null,null,null,0]
[18.110000000000017,"Painting to ceilings at any height.",null,"item",null,0]
[18.120000000000019,"Painting shall include for all preparatory work.",null,"item",null,0]
[18.13000000000002,"Painting systems shall include for all necessary primers, undercoats, sealers and finishing coats as required to complete the paint system as specified.",null,"item",null,0]
[18.140000000000022,"Painting to door frames shall include for all frames irrespective of girth.",null,"item",null,0]
[18.150000000000023,"Making good pre-primed surfaces before applying the paint system.",null,"item",null,0]
[18.160000000000025,"Painting to stopping beads, shadowline edge trims and all other trims to ceilings, partitions and walls.",null,"item",null,0]
[18.170000000000027,"Painting to circular work.",null,"item",null,0]
[18.180000000000028,"Provision of sample finishes, colours and similar.",null,"item",null,0]
[18.19000000000003,"Allow for any additional costs necessary to complete the works and for which no specific provision is included for pricing elsewhere",null,"item",null,0]
[18.200000000000031,"All necessary handling, shipping, logistics and freight including related fees and charges to ensure satisfactory completion of these works",null,"item",null,0]
[18.210000000000033,"INTERNAL & EXTERNAL PAINTING",null,null,null,0]
[18.220000000000034,"Prepare and apply specified Dulux Professional Interior paint system to the following",null,null,null,0]
[18.230000000000036,"Internal fibre cement wall lining including chair rail",1144,"m2",null,0]
[18.240000000000038,"Internal fibre cement ceiling lining including bulkheads and access panels",219,"m2",null,0]
[18.250000000000039,"Internal feature wall panels, if required (FWP1)",13,"m2",null,0]
[18.260000000000041,"Internal fibre cement window sill and reveal, 0-250 high",127,"m",null,0]
[18.270000000000042,"Timber doors including frame, generally",49,"no",null,0]
[18.280000000000044,"Dulux system comprising Professional Total Prep primer and two coats of Dulux Wash & Wear Low Sheen",null,null,null,0]
[18.290000000000045,"Internal blockwork walls",63,"m2",null,0]
[18.300000000000047,"Internal concrete column",6,"m2",null,0]
[18.310000000000048,"Internal concrete stair soffits",23,"m2",null,0]
[18.32000000000005,"External concrete soffits",17,"m2",null,0]
[18.330000000000052,"Dulux system comprising prep coat AcraTex Renderwall Float Finish, primer AcraTex Green Render Sealer and two coats AcraTex AcraShield Advance",null,null,null,0]
[18.340000000000053,"Internal blockwork walls",29,"m2",null,0]
[18.350000000000055,"Internal concrete stair soffit",5,"m2",null,0]
[18.360000000000056,"Dulux system comprising two coats AcraTex Sedona with fine-medium texture roller finish and final coat AcraTex AcraShield Advance Matt",null,null,null,0]
[18.370000000000058,"External blockwork walls",1307,"m2",null,0]
[18.380000000000059,"External concrete roof",26,"m2",null,0]
[18.390000000000061,"External concrete slab edges",11,"m2",null,0]
[18.400000000000063,"Dulux system comprising prep coat AcraTex Tiltwash Cleaner, primer AcraTex Green Render Sealer and two coats AcraTex AcraShield Advance",null,null,null,0]
[18.410000000000064,"Internal concrete columns",25,"m2",null,0]
[18.420000000000066,"APPLIED FINISHES",null,null,null,0]
[18.430000000000067,"Dulux system comprising anti-graffiti two coats App Surfaceshield HD Clear",null,null,null,0]
[18.440000000000069,"Internal blockwork walls",573,"m2",null,0]
[18.45000000000007,"External blockwork walls",748,"m2",null,0]
[18.460000000000072,"Parchem 'Fosroc Nitoflr FC100' floor sealer as specified and applied in accordance with manufacturer's instructions",null,null,null,0]
[18.470000000000073,"Sealer to concrete slab (AFP1)",101,"m2",null,0]
[18.480000000000075,"Parchem 'Fosroc Nitoflr HD' floor sealer as specified and applied in accordance with manufacturer's instructions",null,null,null,0]
[18.490000000000077,"Sealer to concrete slab (CONC1)",388,"m2",null,0]
[18.500000000000078,"DryTreat 'Stainproof' floor sealer as specified and applied in accordance with manufacturer's instructions",null,null,null,0]
[18.51000000000008,"Sealer to concrete slab (BFC)",296,"m2",null,0]
[18.520000000000081,"OTHER FINISHES",null,null,null,0]
[18.530000000000083,"Allow for an necessary line marking including disabled parking, loading and disable zones",1,"item",null,0]
[18.540000000000084,"Allow for an necessary painting to metalwork items not already powdercoated",1,"item",null,0]
[null,"Total",null,null,null,{"$f":"SUM(F1047:F1101)","v":0}]
[]
["SUNDRY HARDWARE"]
["Code","Description","Quantity","Unit","Rate","Total"]
[19.010000000000002,"GENERALLY",null,null,null,{"$f":"C1106*E1106","v":0}]
[{"$f":"A1106+0.01","v":19.020000000000003},"Under the terms of the contract, no adjustment to the contract sum will be made for any errors in this Bill of Quantities.",null,null,null,0]
[{"$f":"A1107+0.01","v":19.030000000000005},"The drawings and specifications constituting the tender documents define the scope of works. Tenderers must satisfy themselves of the adequacy of the descriptions and quantities contained within this Bill of Quantities.",null,null,null,0]
[19.040000000000006,"M5 Advisors Pty Ltd accepts no liability for any reliance on or use of the Bill of Quantities by any party.",null,null,null,0]
[19.050000000000008,"SPECIFICATION",null,null,null,0]
[19.060000000000009,"The Contractor is referred to the relevant specification sections for full particulars and will be deemed to have allowed here or in the measurement rates for all costs in connection therewith.",null,null,null,0]
[19.070000000000011,"DRAWINGS",null,null,null,0]
[19.080000000000013,"The Contractor is referred to the Drawing Schedule attached to the back of the Bill of Quantities for the drawings and their revision or issue references used in the preparation of this document.",null,null,null,0]
[19.090000000000014,"PREAMBLE",null,null,null,0]
[19.100000000000016,"Allow in the following items or in the rates of measured items for all costs incurred in executing the works in accordance with the intent of the drawings and specifications",null,null,null,0]
[19.110000000000017,"Fixing of items, including all necessary screws, bolts (including nuts and any type of washer which may be required) and other fixing devices",null,"item",null,0]
[19.120000000000019,"Drilling for bolts and drilling structure for patent expanding masonry anchors and the like",null,"item",null,0]
[19.13000000000002,"Grouting, including forming all necessary mortices, rebates, etc",null,"item",null,0]
[19.140000000000022,"All necessary seismic restraints and seismic certification.",null,"item",null,0]
[19.150000000000023,"Wrapping finished work with paper, coating with grease or carrying out such other protective measures as may be required and for removing and cleaning on completion",null,"item",null,0]
[19.160000000000025,"Guarantees",null,"item",null,0]
[19.170000000000027,"Submissions",null,"item",null,0]
[19.180000000000028,"Inspections",null,"item",null,0]
[19.19000000000003,"Allow for any additional costs necessary to complete the works and for which no specific provision is included for pricing elsewhere",null,"item",null,0]
[19.200000000000031,"All necessary handling, shipping, logistics and freight including related fees and charges to ensure satisfactory completion of these works",null,"item",null,0]
[19.210000000000033,"SUNDRY HARDWARE",null,null,null,0]
[19.220000000000034,"Allow to supply and install the following as specified",null,null,null,0]
[19.230000000000036,"JD Macdonald 'JDM-GTP-8' stainless steel PWD grab rail set (965 x 600 with additional 300 long) with concealed fixings",3,"no",null,0]
[19.240000000000038,"JD Macdonald 'JDM-GAL-P' stainless steel Ambulant grab rail set (pair of 450 x 450 L-shaped rails) with concealed fixings",2,"no",null,0]
[19.250000000000039,"JD Macdonald stainless steel Shower grab rail set (pair of 450 x 450 L-shaped rails) with concealed fixings",3,"no",null,0]
[19.260000000000041,"JD Macdonald 'BCP-JDM' surface mounted baby change table (BC1)",1,"no",null,0]
[19.270000000000042,"Bobrick 'B6999.60' toilet roll holder (TRH1)",6,"no",null,0]
[19.280000000000044,"Bobrick 'B4112-316' soap dispenser (SD1)",8,"no",null,0]
[19.290000000000045,"Bobrick 'B369039' paper towel dispenser (PTD1)",6,"no",null,0]
[19.300000000000047,"Britex 'Shelf-S' cleaners wall shelf 600 x 325 wide (CSH1)",2,"no",null,0]
[19.310000000000048,"Britex 'BTX-11-014' wall mounted shower seat 960 x 400 wide (SHRS)",3,"no",null,0]
[19.32000000000005,"Bobrick 'B6827' coat hook (CHK)",6,"no",null,0]
[19.330000000000052,"Bobrick 'B680' soap dish (SH1)",3,"no",null,0]
[19.340000000000053,"RBA 'RBA4177-128' shower rod and track 1200 x 1200 wide with ceiling support and Taffeta shower curtain (SHRCUR1)",3,"no",null,0]
[19.350000000000055,"Hafele broomstick holder 480 long with three movable clamps (BR1)",2,"no",null,0]
[19.360000000000056,"Polytec mirror 450 x 1000 high (MR1)",3,"no",null,0]
[19.370000000000058,"Polytec mirror 500 x 800 high (MR2)",4,"no",null,0]
[19.380000000000059,"Polytec 'UD-RO' urinal division panel fixed to wall (URP)",1,"no",null,0]
[19.390000000000061,"BLINDS",null,null,null,0]
[19.400000000000063,"Verosol R200.0 ambience semi-transparent manual roller blind including fascia as detailed on Dwg A330",null,null,null,0]
[19.410000000000064,"Blinds to suit window opening 1000 wide x 1000 long (BL1)",2,"no",null,0]
[19.420000000000066,"Blinds to suit window opening 1000 wide x 1800 long (BL1)",7,"no",null,0]
[19.430000000000067,"Verosol R201.0 ambience with twin roller blinds, a block out roller blind and a semi-transparent roller blind including fascia as detailed on Dwg A330",null,null,null,0]
[19.440000000000069,"Blinds to suit window opening 1000 wide x 1800 long (BL2)",4,"no",null,0]
[19.45000000000007,"Blinds to suit window opening 2000 wide x 1800 long (BL2)",3,"no",null,0]
[19.460000000000072,"SIGNAGE",null,null,null,0]
[19.470000000000073,"Allow for statutory signage as specified in the signage schedule",1,"item",null,0]
[19.480000000000075,"Allow for building signage as specified in the signage schedule",1,"item",null,0]
[19.490000000000077,"Allow for all other signage (such as room names etc) as specified in the signage schedule",1,"item",null,0]
[null,"Total",null,null,null,{"$f":"SUM(F1105:F1154)","v":0}]
[]
["JOINERY & CARPENTRY"]
["Code","Description","Quantity","Unit","Rate","Total"]
[20.010000000000002,"GENERALLY",null,null,null,{"$f":"C1159*E1159","v":0}]
[{"$f":"A1159+0.01","v":20.020000000000003},"Under the terms of the contract, no adjustment to the contract sum will be made for any errors in this Bill of Quantities.",null,null,null,0]
[{"$f":"A1160+0.01","v":20.030000000000005},"The drawings and specifications constituting the tender documents define the scope of works. Tenderers must satisfy themselves of the adequacy of the descriptions and quantities contained within this Bill of Quantities.",null,null,null,0]
[20.040000000000006,"M5 Advisors Pty Ltd accepts no liability for any reliance on or use of the Bill of Quantities by any party.",null,null,null,0]
[20.050000000000008,"SPECIFICATION",null,null,null,0]
[20.060000000000009,"The Contractor is referred to the relevant specification sections for full particulars and will be deemed to have allowed here or in the measurement rates for all costs in connection therewith.",null,null,null,0]
[20.070000000000011,"DRAWINGS",null,null,null,0]
[20.080000000000013,"The Contractor is referred to the Drawing Schedule attached to the back of the Bill of Quantities for the drawings and their revision or issue references used in the preparation of this document.",null,null,null,0]
[20.090000000000014,"PREAMBLE",null,null,null,0]
[20.100000000000016,"Allow in the following items or in the rates of measured items for all costs incurred in executing the works in accordance with the intent of the drawings and specifications",null,null,null,0]
[20.110000000000017,"Joinery fittings and similar to special design or detail.",null,"item",null,0]
[20.120000000000019,"The method of dimensioning and describing joinery fittings herein is not intended to imply any particular method of fabrication or installation procedure.",null,"item",null,0]
[20.13000000000002,"All sundry packers required for the complete installation of all items.",null,"item",null,0]
[20.140000000000022,"All caulking, sealant, backing rods, accessories, and trims.",null,"item",null,0]
[20.150000000000023,"Joinery items and similar shall include for all sizes, priming, painting and finish, the Contractor is referred to the drawings and specification for all details, construction and finish.",null,"item",null,0]
[20.160000000000025,"The Contractor will be deemed to have referred to the drawings, specification etc. and prices will deemed to include for everything required to complete the works.",null,"item",null,0]
[20.170000000000027,"All necessary seismic restraints and seismic certification.",null,"item",null,0]
[20.180000000000028,"All sizes given are approximate only and will be confirmed on site prior to manufacture.",null,"item",null,0]
[20.19000000000003,"Inspections",null,"item",null,0]
[20.200000000000031,"Submissions",null,"item",null,0]
[20.210000000000033,"Providing samples",null,"item",null,0]
[20.220000000000034,"Preparation of shop drawings",null,"item",null,0]
[20.230000000000036,"Allow for any additional costs necessary to complete the works and for which no specific provision is included for pricing elsewhere",null,"item",null,0]
[20.240000000000038,"All necessary handling, shipping, logistics and freight including related fees and charges to ensure satisfactory completion of these works",null,"item",null,0]
[20.250000000000039,"JOINERY",null,null,null,0]
[20.260000000000041,"Joinery as per drawings and specification including all necessary trims, hardware, cutlery trays and pull out bins",null,null,null,0]
[20.270000000000042,"Reception unit with composite acrylic benchtop and edges approx. 2060 long x 900 wide x 870-1200 high overall as detailed on Dwg A701",1,"no",null,0]
[20.280000000000044,"Reception rear bench unit with composite acrylic benchtop and edges approx. 2000 long x 500 wide x 740 high overall as detailed on Dwg A701",1,"no",null,0]
[20.290000000000045,"Kitchen bench unit approx. 2700 long x 600 wide x 870 high with benchtop, set of drawers and provision for sink as detailed on Dwg A702",1,"no",null,0]
[20.300000000000047,"Kitchen overhead unit approx. 1500 long x 300 wide x 600 high with 600 bulkhead to meet flush with ceiling as detailed on Dwg A702",1,"no",null,0]
[20.310000000000048,"Kitchen overhead open shelving approx. 1200 long x 300 wide x 600 high with 300 bulkhead to meet flush with ceiling as detailed on Dwg A702",1,"no",null,0]
[20.32000000000005,"Kitchen cupboard unit 600 long x 600 deep x 2400 high and 300 bulkhead to meet flush with ceiling as detailed on Dwg A702",1,"no",null,0]
[20.330000000000052,"Kitchen splashback from LAM2 approx. 1700 long x 600 high as detailed on Dwg A702",1,"no",null,0]
[20.340000000000053,"Kitchen splashback from LAM2 approx. 1200 long x 900 high as detailed on Dwg A702",1,"no",null,0]
[20.350000000000055,"Laundry bench unit approx. 1200 long x 600 wide x 900 high with benchtop with provision for sink as detailed on Dwg A700",1,"no",null,0]
[20.360000000000056,"Laundry overhead unit approx. 1200 long x 300 wide x 600 high with 300 bulkhead to meet flush with ceiling as detailed on Dwg A700",1,"no",null,0]
[20.370000000000058,"Laundry splashback from LAM1 approx. 1200 long x 600 high as detailed on Dwg A700",1,"no",null,0]
[20.380000000000059,"Cleaners room splashback from LAM7 approx. 900 long x 600 high as detailed on Dwg A160",2,"no",null,0]
[20.390000000000061,"Sill to security desk pass through window approx. 1500 long x 210 wide x 60 deep as per detail 7,8,9 on Dwg A700",1,"no",null,0]
[20.400000000000063,"SUNDRY CARPENTRY",null,null,null,0]
[20.410000000000064,"Feature wall panel comprising 'Easycraft Expression series EX27 MR-CHE' panel system fixed to wall as specified (FWP1)",13,"m2",null,0]
[20.420000000000066,"Pinnable wall panel comprising 'Acoufelt Fracture chevron series' panels complete with aluminium angle in black finish to perimeter direct fixed to wall lining including any necessary cutouts and trims as detailed on Dwg A331 (PNB1)",48,"m2",null,0]
[20.430000000000067,"Chair rail approx. 200 high x 25 thick solid timber rail fixed to fibre cement linings with adhesive and screws as specified (CHR1)",45,"m",null,0]
[null,"Total",null,null,null,{"$f":"SUM(F1158:F1201)","v":0}]
[]
["EXTERNAL WORKS"]
["Code","Description","Quantity","Unit","Rate","Total"]
[21.01,"GENERALLY",null,null,null,{"$f":"C1206*E1206","v":0}]
[{"$f":"A1206+0.01","v":21.020000000000003},"Under the terms of the contract, no adjustment to the contract sum will be made for any errors in this Bill of Quantities.",null,null,null,0]
[{"$f":"A1207+0.01","v":21.030000000000005},"The drawings and specifications constituting the tender documents define the scope of works. Tenderers must satisfy themselves of the adequacy of the descriptions and quantities contained within this Bill of Quantities.",null,null,null,0]
[21.040000000000006,"M5 Advisors Pty Ltd accepts no liability for any reliance on or use of the Bill of Quantities by any party.",null,null,null,0]
[21.050000000000008,"SPECIFICATION",null,null,null,0]
[21.060000000000009,"The Contractor is referred to the relevant specification sections for full particulars and will be deemed to have allowed here or in the measurement rates for all costs in connection therewith.",null,null,null,0]
[21.070000000000011,"DRAWINGS",null,null,null,0]
[21.080000000000013,"The Contractor is referred to the Drawing Schedule attached to the back of the Bill of Quantities for the drawings and their revision or issue references used in the preparation of this document.",null,null,null,0]
[21.090000000000014,"PREAMBLE",null,null,null,0]
[21.100000000000016,"Allow in the following items or in the rates of measured items for all costs incurred in executing the works in accordance with the intent of the drawings and specifications",null,null,null,0]
[21.110000000000017,"Guarantees",null,"item",null,0]
[21.120000000000019,"Submissions",null,"item",null,0]
[21.13000000000002,"Inspections",null,"item",null,0]
[21.140000000000022,"Allow for any additional costs necessary to complete the works and for which no specific provision is included for pricing elsewhere",null,"item",null,0]
[21.150000000000023,"All necessary handling, shipping, logistics and freight including related fees and charges to ensure satisfactory completion of these works",null,"item",null,0]
[21.160000000000025,"EXTERNAL WORKS",null,null,null,0]
[21.170000000000027,"Approved gravel filling including ground preparation, compacting, leveling and trimming surface refer Dwg C0100",null,null,null,0]
[21.180000000000028,"Gravel laid to 100 depth including weed mat",168,"m2",null,0]
[null,"Total",null,null,null,{"$f":"SUM(F1205:F1223)","v":0}]
[]
["HYDRAULIC & DRAINAGE SERVICES"]
["Code","Description","Quantity","Unit","Rate","Total"]
[22.01,"GENERALLY",null,null,null,{"$f":"C1228*E1228","v":0}]
[{"$f":"A1228+0.01","v":22.020000000000003},"The Hydraulic and Drainage Installations have been given as items and have not been measured out in detail. Prices for Hydraulic and Drainage Installations will be deemed to include for all work necessary to fully provide and commission the installations in accordance with the drawings and specifications.",null,null,null,0]
[{"$f":"A1229+0.01","v":22.030000000000005},"Under the terms of the contract, no adjustment to the contract sum will be made for any errors in this Bill of Quantities.",null,null,null,0]
[22.040000000000006,"The drawings and specifications constituting the tender documents define the scope of works. Tenderers must satisfy themselves of the adequacy of the descriptions and quantities contained within this Bill of Quantities.",null,null,null,0]
[22.050000000000008,"M5 Advisors Pty Ltd accepts no liability for any reliance on or use of the Bill of Quantities by any party.",null,null,null,0]
[22.060000000000009,"SPECIFICATION",null,null,null,0]
[22.070000000000011,"The Contractor is referred to the relevant specification sections for full particulars and will be deemed to have allowed here or in the measurement rates for all costs in connection therewith.",null,null,null,0]
[22.080000000000013,"DRAWINGS",null,null,null,0]
[22.090000000000014,"The Contractor is referred to the Drawing Schedule attached to the back of the Bill of Quantities for the drawings and their revision or issue references used in the preparation of this document.",null,null,null,0]
[22.100000000000016,"PREAMBLE",null,null,null,0]
[22.110000000000017,"Allow in the following items or in the rates of measured items for all costs incurred in executing the works in accordance with the intent of the drawings and specifications",null,null,null,0]
[22.120000000000019,"Complying with relevant acts, by-laws and regulations.",null,"item",null,0]
[22.13000000000002,"Giving notices, obtaining permits, paying fees, obtaining certificates of satisfactory completion issued by a local authority where required and similar, in connection with the installations",null,"item",null,0]
[22.140000000000022,"Testing installations",null,"item",null,0]
[22.150000000000023,"Sterilizing of installations",null,"item",null,0]
[22.160000000000025,"Marking pipes with colour bands, tags, plates, badges or lettering for identification purposes, or with arrows for indicating directions of flow for each type of installation",null,"item",null,0]
[22.170000000000027,"Providing as constructed drawings as specified",null,"item",null,0]
[22.180000000000028,"Allow for warranties and guarantees",null,"item",null,0]
[22.19000000000003,"Providing Operator Training and Maintenance Manuals as specified",null,"item",null,0]
[22.200000000000031,"All necessary seismic restraints and seismic certification.",null,"item",null,0]
[22.210000000000033,"Maintenance requirements during prescribed maintenance period.",null,"item",null,0]
[22.220000000000034,"Allow for any additional costs necessary to complete the works and for which no specific provision is included for pricing elsewhere",null,"item",null,0]
[22.230000000000036,"All necessary handling, shipping, logistics and freight including related fees and charges to ensure satisfactory completion of these works",null,"item",null,0]
[22.240000000000038,"HYDRAULIC AND DRAINAGE INSTALLATIONS",null,null,null,0]
[22.250000000000039,"Allow for all hydraulic services",1,"item",null,0]
[22.260000000000041,"Allow for all drainage services",1,"item",null,0]
[22.270000000000042,"Allow for all builders work in connection with services",1,"item",null,0]
[null,"Total",null,null,null,{"$f":"SUM(F1227:F1254)","v":0}]
[]
["FIRE SERVICES"]
["Code","Description","Quantity","Unit","Rate","Total"]
[23.01,"GENERALLY",null,null,null,{"$f":"C1259*E1259","v":0}]
[{"$f":"A1259+0.01","v":23.020000000000003},"The Fire Services Installations have been given as items and have not been measured out in detail. Prices for Fire Services Installations will be deemed to include for all work necessary to fully provide and commission the installations in accordance with the drawings and specifications.",null,null,null,0]
[{"$f":"A1260+0.01","v":23.030000000000005},"Under the terms of the contract, no adjustment to the contract sum will be made for any errors in this Bill of Quantities.",null,null,null,0]
[23.040000000000006,"The drawings and specifications constituting the tender documents define the scope of works. Tenderers must satisfy themselves of the adequacy of the descriptions and quantities contained within this Bill of Quantities.",null,null,null,0]
[23.050000000000008,"M5 Advisors Pty Ltd accepts no liability for any reliance on or use of the Bill of Quantities by any party.",null,null,null,0]
[23.060000000000009,"SPECIFICATION",null,null,null,0]
[23.070000000000011,"The Contractor is referred to the relevant specification sections for full particulars and will be deemed to have allowed here or in the measurement rates for all costs in connection therewith.",null,null,null,0]
[23.080000000000013,"DRAWINGS",null,null,null,0]
[23.090000000000014,"The Contractor is referred to the Drawing Schedule attached to the back of the Bill of Quantities for the drawings and their revision or issue references used in the preparation of this document.",null,null,null,0]
[23.100000000000016,"PREAMBLE",null,null,null,0]
[23.110000000000017,"Allow in the following items or in the rates of measured items for all costs incurred in executing the works in accordance with the intent of the drawings and specifications",null,null,null,0]
[23.120000000000019,"Complying with relevant acts, by-laws and regulations.",null,"item",null,0]
[23.13000000000002,"Giving notices, obtaining permits and completion certificates, paying fees and charges in connection with the installations.",null,"item",null,0]
[23.140000000000022,"Testing installations",null,"item",null,0]
[23.150000000000023,"Samples",null,"item",null,0]
[23.160000000000025,"Preparation of as-installed drawings and diagrams and instruction manuals of each installation.",null,"item",null,0]
[23.170000000000027,"Maintenance requirements during prescribed maintenance period.",null,"item",null,0]
[23.180000000000028,"Allow for warranties and guarantees",null,"item",null,0]
[23.19000000000003,"Allow for maintenance manuals",null,"item",null,0]
[23.200000000000031,"All necessary seismic restraints and seismic certification.",null,"item",null,0]
[23.210000000000033,"Allow for any additional costs necessary to complete the works and for which no specific provision is included for pricing elsewhere",null,"item",null,0]
[23.220000000000034,"All necessary handling, shipping, logistics and freight including related fees and charges to ensure satisfactory completion of these works",null,"item",null,0]
[23.230000000000036,"FIRE SERVICES INSTALLATIONS",null,null,null,0]
[23.240000000000038,"Allow for all fire services",1,"item",null,0]
[23.250000000000039,"Allow for all builders work in connection with services",1,"item",null,0]
[null,"Total",null,null,null,{"$f":"SUM(F1258:F1283)","v":0}]
[]
["ELECTRICAL SERVICES"]
["Code","Description","Quantity","Unit","Rate","Total"]
[24.01,"GENERALLY",null,null,null,{"$f":"C1288*E1288","v":0}]
[{"$f":"A1288+0.01","v":24.020000000000003},"The Electrical Installations have been given as items and have not been measured out in detail. Prices for Electrical Installations will be deemed to include for all work necessary to fully provide and commission the installations in accordance with the drawings and specifications.",null,null,null,0]
[{"$f":"A1289+0.01","v":24.030000000000005},"Under the terms of the contract, no adjustment to the contract sum will be made for any errors in this Bill of Quantities.",null,null,null,0]
[24.040000000000006,"The drawings and specifications constituting the tender documents define the scope of works. Tenderers must satisfy themselves of the adequacy of the descriptions and quantities contained within this Bill of Quantities.",null,null,null,0]
[24.050000000000008,"M5 Advisors Pty Ltd accepts no liability for any reliance on or use of the Bill of Quantities by any party.",null,null,null,0]
[24.060000000000009,"SPECIFICATION",null,null,null,0]
[24.070000000000011,"The Contractor is referred to the relevant specification sections for full particulars and will be deemed to have allowed here or in the measurement rates for all costs in connection therewith.",null,null,null,0]
[24.080000000000013,"DRAWINGS",null,null,null,0]
[24.090000000000014,"The Contractor is referred to the Drawing Schedule attached to the back of the Bill of Quantities for the drawings and their revision or issue references used in the preparation of this document.",null,null,null,0]
[24.100000000000016,"PREAMBLE",null,null,null,0]
[24.110000000000017,"Allow in the following items or in the rates of measured items for all costs incurred in executing the works in accordance with the intent of the drawings and specifications",null,null,null,0]
[24.120000000000019,"Complying with relevant acts, by-laws and regulations",null,"item",null,0]
[24.13000000000002,"Giving notices, obtaining permits and completion certificates, paying fees and charges in connection with the installations",null,"item",null,0]
[24.140000000000022,"Testing installations",null,"item",null,0]
[24.150000000000023,"Samples",null,"item",null,0]
[24.160000000000025,"Preparation of as-installed drawings and diagrams and instruction manuals of each installation",null,"item",null,0]
[24.170000000000027,"Maintenance requirements during prescribed maintenance period.",null,"item",null,0]
[24.180000000000028,"Allow for warranties and guarantees",null,"item",null,0]
[24.19000000000003,"Allow for maintenance manuals",null,"item",null,0]
[24.200000000000031,"All necessary seismic restraints and seismic certification.",null,"item",null,0]
[24.210000000000033,"Allow for any additional costs necessary to complete the works and for which no specific provision is included for pricing elsewhere",null,"item",null,0]
[24.220000000000034,"All necessary handling, shipping, logistics and freight including related fees and charges to ensure satisfactory completion of these works",null,"item",null,0]
[24.230000000000036,"ELECTRICAL INSTALLATIONS",null,null,null,0]
[24.240000000000038,"Allow for all electrical services",1,"item",null,0]
[24.250000000000039,"Allow for all builders work in connection with services",1,"item",null,0]
[null,"Total",null,null,null,{"$f":"SUM(F1287:F1312)","v":0}]
[]
["MECHANICAL SERVICES"]
["Code","Description","Quantity","Unit","Rate","Total"]
[25.01,"GENERALLY",null,null,null,{"$f":"C1317*E1317","v":0}]
[{"$f":"A1317+0.01","v":25.020000000000003},"The Mechanical Installations have been given as items and have not been measured out in detail. Prices for Mechanical Installations will be deemed to include for all work necessary to fully provide and commission the installations in accordance with the drawings and specifications.",null,null,null,0]
[{"$f":"A1318+0.01","v":25.030000000000005},"Under the terms of the contract, no adjustment to the contract sum will be made for any errors in this Bill of Quantities.",null,null,null,0]
[25.040000000000006,"The drawings and specifications constituting the tender documents define the scope of works. Tenderers must satisfy themselves of the adequacy of the descriptions and quantities contained within this Bill of Quantities.",null,null,null,0]
[25.050000000000008,"M5 Advisors Pty Ltd accepts no liability for any reliance on or use of the Bill of Quantities by any party.",null,null,null,0]
[25.060000000000009,"SPECIFICATION",null,null,null,0]
[25.070000000000011,"The Contractor is referred to the relevant specification sections for full particulars and will be deemed to have allowed here or in the measurement rates for all costs in connection therewith.",null,null,null,0]
[25.080000000000013,"DRAWINGS",null,null,null,0]
[25.090000000000014,"The Contractor is referred to the Drawing Schedule attached to the back of the Bill of Quantities for the drawings and their revision or issue references used in the preparation of this document.",null,null,null,0]
[25.100000000000016,"PREAMBLE",null,null,null,0]
[25.110000000000017,"Allow in the following items or in the rates of measured items for all costs incurred in executing the works in accordance with the intent of the drawings and specifications",null,null,null,0]
[25.120000000000019,"Balancing air conditioning installation and the like.",null,"item",null,0]
[25.13000000000002,"Testing installations as required",null,"item",null,0]
[25.140000000000022,"Giving notices, obtaining permits and completion certificates, paying fees and charges in connection with the installations",null,"item",null,0]
[25.150000000000023,"Preparation of as-installed drawings and diagrams and instruction manuals of each installation.",null,"item",null,0]
[25.160000000000025,"Maintenance requirements during prescribed maintenance period.",null,"item",null,0]
[25.170000000000027,"Warranties, certifications and guarantees",null,"item",null,0]
[25.180000000000028,"Maintenance manuals",null,"item",null,0]
[25.19000000000003,"All necessary seismic restraints and seismic certification.",null,"item",null,0]
[25.200000000000031,"Allow for any additional costs necessary to complete the works and for which no specific provision is included for pricing elsewhere",null,"item",null,0]
[25.210000000000033,"All necessary handling, shipping, logistics and freight including related fees and charges to ensure satisfactory completion of these works",null,"item",null,0]
[25.220000000000034,"MECHANICAL INSTALLATIONS",null,null,null,0]
[25.230000000000036,"Allow for all mechanical services including any gas services",1,"item",null,0]
[25.240000000000038,"Allow for all builders work in connection with services",1,"item",null,0]
[null,"Total",null,null,null,{"$f":"SUM(F1316:F1340)","v":0}]
[]
["LIFT SERVICES"]
["Code","Description","Quantity","Unit","Rate","Total"]
[26.01,"GENERALLY",null,null,null,{"$f":"C1345*E1345","v":0}]
[{"$f":"A1345+0.01","v":26.020000000000003},"The Lift Installation have been given as items and have not been measured out in detail. Prices for Lift Installations will be deemed to include for all work necessary to fully provide and commission the installations in accordance with the drawings and specifications.",null,null,null,0]
[{"$f":"A1346+0.01","v":26.030000000000005},"Under the terms of the contract, no adjustment to the contract sum will be made for any errors in this Bill of Quantities.",null,null,null,0]
[26.040000000000006,"The drawings and specifications constituting the tender documents define the scope of works. Tenderers must satisfy themselves of the adequacy of the descriptions and quantities contained within this Bill of Quantities.",null,null,null,0]
[26.050000000000008,"M5 Advisors Pty Ltd accepts no liability for any reliance on or use of the Bill of Quantities by any party.",null,null,null,0]
[26.060000000000009,"SPECIFICATION",null,null,null,0]
[26.070000000000011,"The Contractor is referred to the relevant specification sections for full particulars and will be deemed to have allowed here or in the measurement rates for all costs in connection therewith.",null,null,null,0]
[26.080000000000013,"DRAWINGS",null,null,null,0]
[26.090000000000014,"The Contractor is referred to the Drawing Schedule attached to the back of the Bill of Quantities for the drawings and their revision or issue references used in the preparation of this document.",null,null,null,0]
[26.100000000000016,"PREAMBLE",null,null,null,0]
[26.110000000000017,"Allow in the following items or in the rates of measured items for all costs incurred in executing the works in accordance with the intent of the drawings and specifications",null,null,null,0]
[26.120000000000019,"Complying with relevant acts, by-laws and regulations",null,"item",null,0]
[26.13000000000002,"Giving notices, obtaining permits and completion certificates, paying fees and charges in connection with the installations",null,"item",null,0]
[26.140000000000022,"Maintenance requirements during prescribed maintenance period.",null,"item",null,0]
[26.150000000000023,"Commissioning of phone",null,"item",null,0]
[26.160000000000025,"Testing installations as required",null,"item",null,0]
[26.170000000000027,"Preparation of as-installed drawings and diagrams and instruction manuals of each installation",null,"item",null,0]
[26.180000000000028,"Warranties, certifications and guarantees",null,"item",null,0]
[26.19000000000003,"Maintenance manuals",null,"item",null,0]
[26.200000000000031,"All necessary seismic restraints and seismic certification.",null,"item",null,0]
[26.210000000000033,"Allow for any additional costs necessary to complete the works and for which no specific provision is included for pricing elsewhere",null,"item",null,0]
[26.220000000000034,"All necessary handling, shipping, logistics and freight including related fees and charges to ensure satisfactory completion of these works",null,"item",null,0]
[26.230000000000036,"LIFT SERVICES INSTALLATIONS",null,null,null,0]
[26.240000000000038,"Allow for all lift services",1,"item",null,0]
[26.250000000000039,"Allow for all lift car fitout",1,"item",null,0]
[26.260000000000041,"Allow for all builders work in connection with services",1,"item",null,0]
[null,"Total",null,null,null,{"$f":"SUM(F1344:F1370)","v":0}]
[]
["APPENDICES"]
["Code","Description","Quantity","Unit","Rate","Total"]
[27.01,"DOCUMENTATION USED FOR MEASUREMENT",null,null,null,{"$f":"C1375*E1375","v":0}]
[{"$f":"A1375+0.01","v":27.020000000000003},"These Bills of Quantities have been measured from the drawings and specifications listed below.",null,null,null,0]
[{"$f":"A1376+0.01","v":27.030000000000005},"ARCHITECTURAL DRAWINGS",null,null,null,0]
[27.040000000000006,"MJ-A000 COVER SHEET B TENDER ISSUE -  17/02/2021",null,null,null,0]
[27.050000000000008,"MJ-A001 LEGENDS & GENERAL NOTES B TENDER ISSUE -  17/02/2021",null,null,null,0]
[27.060000000000009,"MJ-A010 SITE MASTER PLAN B TENDER ISSUE -  17/02/2021",null,null,null,0]
[27.070000000000011,"MJ-A012 EXISTING SURVEY PLAN B TENDER ISSUE -  17/02/2021",null,null,null,0]
[27.080000000000013,"MJ-A020 SITE PLAN - DEMOLITION B TENDER ISSUE -  17/02/2021",null,null,null,0]
[27.090000000000014,"MJ-A030 SITE PLAN B TENDER ISSUE -  17/02/2021",null,null,null,0]
[27.100000000000016,"MJ-A050 VISUALISATION B TENDER ISSUE -  17/02/2021",null,null,null,0]
[27.110000000000017,"MJ-A051 VISUALISATION B TENDER ISSUE -  17/02/2021",null,null,null,0]
[27.120000000000019,"MJ-A110 GENERAL ARRANGEMENT PLAN - LEVEL 01 B TENDER ISSUE -  17/02/2021",null,null,null,0]
[27.13000000000002,"MJ-A111 GENERAL ARRANGEMENT PLAN - LEVEL 02 B TENDER ISSUE -  17/02/2021",null,null,null,0]
[27.140000000000022,"MJ-A120 ROOF PLAN B TENDER ISSUE -  17/02/2021",null,null,null,0]
[27.150000000000023,"MJ-A130 REFLECTED CEILING PLANS B TENDER ISSUE -  17/02/2021",null,null,null,0]
[27.160000000000025,"MJ-A140 STRUCTURAL SETOUT PLANS B TENDER ISSUE -  17/02/2021",null,null,null,0]
[27.170000000000027,"MJ-A141 STRUCTURAL SETOUT PLANS B TENDER ISSUE -  17/02/2021",null,null,null,0]
[27.180000000000028,"MJ-A150 PARTITION PLANS B TENDER ISSUE -  17/02/2021",null,null,null,0]
[27.19000000000003,"MJ-A160 FINISHES PLANS B TENDER ISSUE -  17/02/2021",null,null,null,0]
[27.200000000000031,"MJ-A200 BUILDING ELEVATIONS B TENDER ISSUE -  17/02/2021",null,null,null,0]
[27.210000000000033,"MJ-A201 BUILDING ELEVATIONS B TENDER ISSUE -  17/02/2021",null,null,null,0]
[27.220000000000034,"MJ-A250 BUILDING SECTIONS B TENDER ISSUE -  17/02/2021",null,null,null,0]
[27.230000000000036,"MJ-A251 BUILDING SECTIONS B TENDER ISSUE -  17/02/2021",null,null,null,0]
[27.240000000000038,"MJ-A300 WALL SECTION DETAILS B TENDER ISSUE -  17/02/2021",null,null,null,0]
[27.250000000000039,"MJ-A310 SECTION DETAILS B TENDER ISSUE -  17/02/2021",null,null,null,0]
[27.260000000000041,"MJ-A311 SECTION DETAILS B TENDER ISSUE -  17/02/2021",null,null,null,0]
[27.270000000000042,"MJ-A320 CONSTRUCTION DETAILS B TENDER ISSUE -  17/02/2021",null,null,null,0]
[27.280000000000044,"MJ-A330 INTERNAL DETAILS B TENDER ISSUE -  17/02/2021",null,null,null,0]
[27.290000000000045,"MJ-A331 INTERNAL DETAILS B TENDER ISSUE -  17/02/2021",null,null,null,0]
[27.300000000000047,"MJ-A340 PARTITION DETAILS B TENDER ISSUE -  17/02/2021",null,null,null,0]
[27.310000000000048,"MJ-A350 STAIR 1 DETAILS B TENDER ISSUE -  17/02/2021",null,null,null,0]
[27.32000000000005,"MJ-A351 STAIR 2 DETAILS B TENDER ISSUE -  17/02/2021",null,null,null,0]
[27.330000000000052,"MJ-A352 STAIR 3 + RAMP 1 DETAILS B TENDER ISSUE -  17/02/2021",null,null,null,0]
[27.340000000000053,"MJ-A353 STAIR 4 + STAIR 5 DETAILS B TENDER ISSUE -  17/02/2021",null,null,null,0]
[27.350000000000055,"MJ-A360 HANDRAIL & BALUSTRADE DETAILS B TENDER ISSUE -  17/02/2021",null,null,null,0]
[27.360000000000056,"MJ-A370 WINDOW SCREEN DETAILS B TENDER ISSUE -  17/02/2021",null,null,null,0]
[27.370000000000058,"MJ-A371 WINDOW SCREEN DETAILS B TENDER ISSUE -  17/02/2021",null,null,null,0]
[27.380000000000059,"MJ-A372 MECHANICAL SCREEN DETAILS B TENDER ISSUE -  17/02/2021",null,null,null,0]
[27.390000000000061,"MJ-A380 PREFABRICATED ACCESS LADDERS B TENDER ISSUE -  17/02/2021",null,null,null,0]
[27.400000000000063,"MJ-A400 WINDOW SCHEDULE AND ELEVATIONS B TENDER ISSUE -  17/02/2021",null,null,null,0]
[27.410000000000064,"MJ-A410 WINDOW DETAILS B TENDER ISSUE -  17/02/2021",null,null,null,0]
[27.420000000000066,"MJ-A450 DOOR SCHEDULE B TENDER ISSUE -  17/02/2021",null,null,null,0]
[27.430000000000067,"MJ-A460 DOOR ELEVATIONS B TENDER ISSUE -  17/02/2021",null,null,null,0]
[27.440000000000069,"MJ-A470 DOOR DETAILS B TENDER ISSUE -  17/02/2021",null,null,null,0]
[27.45000000000007,"MJ-A480 GATE SCHEDULE, ELEVATIONS AND DETAILS B TENDER ISSUE -  17/02/2021",null,null,null,0]
[27.460000000000072,"MJ-A500 ROOM DETAILS B TENDER ISSUE -  17/02/2021",null,null,null,0]
[27.470000000000073,"MJ-A610 WET AREA DETAILS B TENDER ISSUE -  17/02/2021",null,null,null,0]
[27.480000000000075,"MJ-A611 WET AREA DETAILS B TENDER ISSUE -  17/02/2021",null,null,null,0]
[27.490000000000077,"MJ-A700 JOINERY DETAILS B TENDER ISSUE -  17/02/2021",null,null,null,0]
[27.500000000000078,"MJ-A701 JOINERY DETAILS B TENDER ISSUE -  17/02/2021",null,null,null,0]
[27.51000000000008,"MJ-A702 JOINERY DETAILS B TENDER ISSUE -  17/02/2021",null,null,null,0]
[27.520000000000081,"MJ-A703 JOINERY DETAILS B TENDER ISSUE -  17/02/2021",null,null,null,0]
[27.530000000000083,"MJ-A704 JOINERY DETAILS B TENDER ISSUE -  17/02/2021",null,null,null,0]
[27.540000000000084,"SPECIFICATIONS & SCHEDULES",null,null,null,0]
[27.550000000000086,"20347 RMI EOC MAJURO - Architectural Specification (B)",null,null,null,0]
[27.560000000000088,"20347 RMI EOC MAJURO - Exterior Finishes Schedule (B)",null,null,null,0]
[27.570000000000089,"20347 RMI EOC MAJURO - Fixtures and Equipment Schedule [B]",null,null,null,0]
[27.580000000000091,"20347 RMI EOC MAJURO - Internal Finishes Schedule [B]",null,null,null,0]
[27.590000000000092,"20347 RMI EOC MAJURO - Sanitary Schedule [B]",null,null,null,0]
[27.600000000000094,"CIVIL DRAWINGS",null,null,null,0]
[27.610000000000095,"MA-C0000 COVER SHEET",null,null,null,0]
[27.620000000000097,"MA-C0001 PROJECT NOTES",null,null,null,0]
[27.630000000000098,"MA-C0100 SITE WORKS LAYOUT PLAN",null,null,null,0]
[27.6400000000001,"MA-C0110 CIVIL WORKS DETAILS SHEET",null,null,null,0]
[27.650000000000102,"STRUCTURAL DRAWINGS",null,null,null,{"$f":"C1439*E1439","v":0}]
[27.660000000000103,"MJ-S000 TITLE SHEET AND DRAWING INDEX",null,null,null,0]
[{"$f":"A1440+0.01","v":27.670000000000105},"MJ-S005 GENERAL NOTES - SHEET 01",null,null,null,0]
[27.680000000000106,"MJ-S010 TYPICAL FOOTING DETAILS - SHEET 01",null,null,null,0]
[27.690000000000108,"MJ-S020 TYPICAL REINFORCED CONCRETE COLUMN DETAILS - SHEET 01",null,null,null,0]
[27.700000000000109,"MJ-S025 TYPICAL REINFORCED CONCRETE WALL DETAILS - SHEET 01",null,null,null,0]
[27.710000000000111,"MJ-S030 TYPICAL REINFORCED CONCRETE STAIR DETAILS - SHEET 01",null,null,null,0]
[27.720000000000113,"MJ-S040 TYPICAL MASONRY DETAILS - SHEET 01",null,null,null,0]
[27.730000000000114,"MJ-S042 TYPICAL MASONRY DETAILS - SHEET 02",null,null,null,0]
[27.740000000000116,"MJ-S050 TYPICAL LANDSCAPE DETAILS - SHEET 01",null,null,null,0]
[27.750000000000117,"MJ-S060 TYPICAL RAFT SLAB ON GROUND DETAILS - SHEET 01",null,null,null,0]
[27.760000000000119,"MJ-S070 TYPICAL REINFORCED CONCRETE SUSPENED SLAB - SHEET 01",null,null,null,0]
[27.77000000000012,"MJ-S090 TYPICAL STEELWORK DETAILS - SHEET 01",null,null,null,0]
[27.780000000000122,"MJ-S200 FOUNDATION PLAN",null,null,null,0]
[27.790000000000123,"MJ-S210 LEVEL 01 - CONCRETE GENERAL ARRANGEMENT PLAN",null,null,null,0]
[27.800000000000125,"MJ-S215 LEVEL 01 - SECTION & DETAILS",null,null,null,0]
[27.810000000000127,"MJ-S220 LEVEL 02 - CONCRETE GENERAL ARRANGEMENT PLAN",null,null,null,0]
[27.820000000000128,"MJ-S221 LEVEL 02 - BOTTOM REINFORCEMENT PLAN",null,null,null,0]
[27.83000000000013,"MJ-S222 LEVEL 02 - TOP REINFORCEMENT PLAN",null,null,null,0]
[27.840000000000131,"MJ-S225 LEVEL 02 - SECTION & DETAILS",null,null,null,0]
[27.850000000000133,"MJ-S230 LOWER ROOF - CONCRETE GENERAL ARRANGEMENT PLAN",null,null,null,0]
[27.860000000000134,"MJ-S231 LOWER ROOF - BOTTOM REINFORCEMENT PLAN",null,null,null,0]
[27.870000000000136,"MJ-S232 LOWER ROOF - TOP REINFORCEMENT PLAN",null,null,null,0]
[27.880000000000138,"MJ-S235 LOWER ROOF - SECTION & DETAILS",null,null,null,0]
[27.890000000000139,"MJ-S240 LIGHTWEIGHT UPPER ROOF PLAN",null,null,null,0]
[27.900000000000141,"HYDRAULIC DRAWINGS",null,null,null,0]
[27.910000000000142,"MJ-H000_B",null,null,null,0]
[27.920000000000144,"MJ-H001_B",null,null,null,0]
[27.930000000000145,"MJ-H101_B",null,null,null,0]
[27.940000000000147,"MJ-H102_B",null,null,null,0]
[27.950000000000149,"MJ-H103_B",null,null,null,0]
[27.96000000000015,"MJ-H201_B",null,null,null,0]
[27.970000000000152,"MJ-H202_B",null,null,null,0]
[27.980000000000153,"FIRE DRAWINGS",null,null,null,0]
[27.990000000000155,"MJ-F001_A",null,null,null,0]
[27.1,"MJ-F002_A",null,null,null,0]
[{"$f":"A1474+0.001","v":27.101000000000003},"MJ-F003_A",null,null,null,0]
[{"$f":"A1475+0.001","v":27.102000000000004},"MJ-F004_A",null,null,null,0]
[27.103000000000005,"MJ-F101_B",null,null,null,0]
[27.104000000000006,"MJ-F102_B",null,null,null,0]
[27.105000000000008,"MJ-F103_A",null,null,null,0]
[27.106000000000009,"ELECTRICAL DRAWINGS",null,null,null,0]
[27.10700000000001,"MJ-E000_B",null,null,null,0]
[27.108000000000011,"MJ-E001_C",null,null,null,0]
[27.109000000000012,"MJ-E003_C",null,null,null,0]
[27.110000000000014,"MJ-E004_B",null,null,null,0]
[27.111000000000015,"MJ-E005_B",null,null,null,0]
[27.112000000000016,"MJ-E100_C",null,null,null,0]
[27.113000000000017,"MJ-E101_C",null,null,null,0]
[27.114000000000019,"MJ-E102_D",null,null,null,0]
[27.11500000000002,"MJ-E103_C",null,null,null,0]
[27.116000000000021,"MJ-E200_C",null,null,null,0]
[27.117000000000022,"MJ-E300_C",null,null,null,0]
[27.118000000000023,"MECHANICAL DRAWINGS",null,null,null,0]
[27.119000000000025,"MJ-M000_B",null,null,null,0]
[27.120000000000026,"MJ-M001_B",null,null,null,0]
[27.121000000000027,"MJ-M002_B",null,null,null,0]
[27.122000000000028,"MJ-M003_A",null,null,null,0]
[27.12300000000003,"MJ-M004_A",null,null,null,0]
[27.124000000000031,"MJ-M100_B",null,null,null,0]
[27.125000000000032,"MJ-M101_B",null,null,null,0]
[null,"Total",null,null,null,{"$f":"SUM(F1374:F1499)","v":0}]
[]
["OPTIONAL ITEMS"]
["Code","Description","Quantity","Unit","Rate","Total"]
[28.01,"GENERALLY",null,null,null,{"$f":"C1504*E1504","v":0}]
[{"$f":"A1504+0.01","v":28.020000000000003},"Under the terms of the contract, no adjustment to the contract sum will be made for any errors in this Bill of Quantities.",null,null,null,0]
[{"$f":"A1505+0.01","v":28.030000000000005},"The drawings and specifications constituting the tender documents define the scope of works. Tenderers must satisfy themselves of the adequacy of the descriptions and quantities contained within this Bill of Quantities.",null,null,null,0]
[28.040000000000006,"M5 Advisors Pty Ltd accepts no liability for any reliance on or use of the Bill of Quantities by any party.",null,null,null,0]
[28.050000000000008,"SPECIFICATION",null,null,null,0]
[28.060000000000009,"The Contractor is referred to the relevant specification sections for full particulars and will be deemed to have allowed here or in the measurement rates for all costs in connection therewith.",null,null,null,0]
[28.070000000000011,"DRAWINGS",null,null,null,0]
[28.080000000000013,"The Contractor is referred to the Drawing Schedule attached to the back of the Bill of Quantities for the drawings and their revision or issue references used in the preparation of this document.",null,null,null,0]
[28.090000000000014,"PREAMBLE",null,null,null,0]
[28.100000000000016,"Allow in the following items or in the rates of measured items for all costs incurred in executing the works in accordance with the intent of the drawings and specifications",null,null,null,0]
[28.110000000000017,"Fixing of items, including all necessary screws, bolts (including nuts and any type of washer which may be required) and other fixing devices",null,"item",null,0]
[28.120000000000019,"Drilling for bolts and drilling structure for patent expanding masonry anchors and the like",null,"item",null,0]
[28.13000000000002,"Grouting, including forming all necessary mortices, rebates, etc",null,"item",null,0]
[28.140000000000022,"Wrapping finished work with paper, coating with grease or carrying out such other protective measures as may be required and for removing and cleaning on completion",null,"item",null,0]
[28.150000000000023,"Guarantees",null,"item",null,0]
[28.160000000000025,"Submissions",null,"item",null,0]
[28.170000000000027,"Inspections",null,"item",null,0]
[28.180000000000028,"Allow for any additional costs necessary to complete the works and for which no specific provision is included for pricing elsewhere",null,"item",null,0]
[28.19000000000003,"All necessary handling, shipping, logistics and freight including related fees and charges to ensure satisfactory completion of these works",null,"item",null,0]
[28.200000000000031,"OPTIONAL PRICING",null,null,null,0]
[28.210000000000033,"The following items are to be priced for clients consideration inclusive of all necessary builders preliminaries and margin, as these items may be adopted within this contract or considered within a separate contract",null,null,null,0]
[28.220000000000034,"Option 1 for vehicular concrete pavement (nominated as blue colour) including all necessary preparation, subgrade and base course, and all necessary line marking, kerbs, grated drains and joints to complete the pavement construction - refer below to assist in pricing",1,"item",null,0]
[28.230000000000036,"Option 1 - Vehicular Concrete Pavement",null,null,null,0]
[28.240000000000038,"Vehicular concrete pavement comprising 180 thick 25MPa concrete pavement with SL82 reinforcement, 150 thick Type 2.3 (CBR45%) base compacted to minimum 95% M.D.D and sub-grade (CBR3%) compacted to 98% standard dry density as detailed on Dwg C0110",null,null,null,0]
[28.250000000000039,"Vehicular concrete pavement to service yard",407,"m2",null,0]
[28.260000000000041,"Vehicular concrete pavement to external NTA driveway",24,"m2",null,0]
[28.270000000000042,"Sawn joints as typical detail on Dwg C0110",91,"m",null,0]
[28.280000000000044,"Kerb ramp 3000 wide",1,"item",null,0]
[28.290000000000045,"Allow for all expansion and isolation joints as typical details on Dwg C0110",1,"item",null,0]
[28.300000000000047,"Note: concrete grated inlet pit part of civil drainage works",null,"note",null,0]
[28.310000000000048,"Kerb and channel comprising 25MPa concrete with reinforcement as required, minimum 75 thick Type 2.3 (CBR45%) base compacted to minimum 95% M.D.D and sub-grade (CBR3%) compacted to 98% standard dry density including subsoil drainage as required, refer typical details on Dwg C0110",null,null,null,0]
[28.32000000000005,"Barrier kerb and channel 450 wide x 300 deep (BKC)",51,"m",null,0]
[28.330000000000052,"Invert channel 600 wide x 200 deep (INK)",31,"m",null,0]
[28.340000000000053,"Mountable kerb and channel 600 wide x 255 deep (MKC)",11,"m",null,0]
[28.350000000000055,"Kerb transition 1000 long from mountable kerb to barrier kerb",2,"no",null,0]
[null,"Total",null,null,null,{"$f":"SUM(F1503:F1538)","v":0}]